Organisation Name,Organisation Code,Effective Date,Directorate,Service Category,Service Category URI,Supplier Name,Payment Date,Transaction Number,Net Amount,Irrecoverable VAT,Purpose_of_the_expenditure,Merchant Category
Wyre Council,http://opendatacommunities.org/doc/district-council/wyre,30/12/2022,Resources,Planning and Development Servs,132C,Daisy Communications LTD,19/12/2022,RS145860,42.92,0.00,Monthly Phone Charges,Advertising - General
Wyre Council,http://opendatacommunities.org/doc/district-council/wyre,30/12/2022,Resources,Support Services,135B,We Are Sunday Ltd,05/12/2022,RS145764,882.00,0.00,RICS RECRUIT - RICS Member Package,Advertising - Recruitment
Wyre Council,http://opendatacommunities.org/doc/district-council/wyre,30/12/2022,People and Places,Support Services,135B,M J Wilkinson,22/12/2022,PE146224,382.80,0.00,Hire of labour onlyorder no 1078304/10/22 - 07/10/2022,Agency Staff
Wyre Council,http://opendatacommunities.org/doc/district-council/wyre,30/12/2022,People and Places,Support Services,135B,M J Wilkinson,22/12/2022,PE146227,382.80,0.00,Hire of Labour only Order no 1078624/10/22 - 28/10/22,Agency Staff
Wyre Council,http://opendatacommunities.org/doc/district-council/wyre,30/12/2022,People and Places,Support Services,135B,M J Wilkinson,01/12/2022,PE145644,316.80,0.00,Hire of Labour only Order no 1078227/9/22 to 29/9/22,Agency Staff
Wyre Council,http://opendatacommunities.org/doc/district-council/wyre,30/12/2022,People and Places,Support Services,135B,M J Wilkinson,01/12/2022,PE145644,168.88,0.00,Hire of Hitachi ZX30 Order no 1078226/9/22,Agency Staff
Wyre Council,http://opendatacommunities.org/doc/district-council/wyre,30/12/2022,People and Places,Support Services,135B,M J Wilkinson,22/12/2022,PE146226,277.20,0.00,Hire of labour only Order no 1078410/10/22 - 14/10/22,Agency Staff
Wyre Council,http://opendatacommunities.org/doc/district-council/wyre,30/12/2022,People and Places,Support Services,135B,M J Wilkinson,22/12/2022,PE146225,488.40,0.00,Hire of Labour onlyOrder no 1078517/10/22 - 21/10/22,Agency Staff
Wyre Council,http://opendatacommunities.org/doc/district-council/wyre,30/12/2022,People and Places,Cultural and Related Services,132A,Catering Elite Ltd,15/12/2022,PE146016,242.38,0.00,Agency staff 27/11/22,Agency Staff
Wyre Council,http://opendatacommunities.org/doc/district-council/wyre,30/12/2022,People and Places,Cultural and Related Services,132A,Catering Elite Ltd,15/12/2022,PE146015,693.77,0.00,Agency Staff 20/11/22,Agency Staff
Wyre Council,http://opendatacommunities.org/doc/district-council/wyre,30/12/2022,People and Places,Cultural and Related Services,132A,Catering Elite Ltd,15/12/2022,PE146014,155.82,0.00,Agency staff 30/10/22,Agency Staff
Wyre Council,http://opendatacommunities.org/doc/district-council/wyre,30/12/2022,People and Places,Cultural and Related Services,132A,Catering Elite Ltd,15/12/2022,PE146013,211.47,0.00,Agency staff 6/11/22,Agency Staff
Wyre Council,http://opendatacommunities.org/doc/district-council/wyre,30/12/2022,Resources,Support Services,135B,Butler Rose Recuitment Ltd,19/12/2022,RS145870,1965.05,0.00,Interim Accountant Support - 7th November 2022 - 30th January 2023,Agency Staff
Wyre Council,http://opendatacommunities.org/doc/district-council/wyre,30/12/2022,Resources,Support Services,135B,Butler Rose Recuitment Ltd,19/12/2022,RS146044,1965.05,0.00,Interim Accountant Support - 7th November 2022 - 30th January 2023,Agency Staff
Wyre Council,http://opendatacommunities.org/doc/district-council/wyre,30/12/2022,Resources,Support Services,135B,Butler Rose Recuitment Ltd,19/12/2022,RS145758,1965.05,0.00,Interim Accountant Support - 7th November 2022 - 30th January 2023,Agency Staff
Wyre Council,http://opendatacommunities.org/doc/district-council/wyre,30/12/2022,Resources,Support Services,135B,Butler Rose Recuitment Ltd,07/12/2022,RS145588,1965.05,0.00,Interim Accountant Support - 7th November 2022 - 30th January 2023,Agency Staff
Wyre Council,http://opendatacommunities.org/doc/district-council/wyre,30/12/2022,Resources,Support Services,135B,Butler Rose Recuitment Ltd,07/12/2022,RS145447,1965.05,0.00,Interim Accountant Support - 7th November 2022 - 30th January 2023,Agency Staff
Wyre Council,http://opendatacommunities.org/doc/district-council/wyre,30/12/2022,People and Places,Cultural and Related Services,132A,Quantum Staffing Solutions Ltd,15/12/2022,PE145774,207.90,0.00,Agency staff MH 23/11/22,Agency Staff
Wyre Council,http://opendatacommunities.org/doc/district-council/wyre,30/12/2022,People and Places,Cultural and Related Services,132A,Quantum Staffing Solutions Ltd,16/12/2022,PE146017,-623.72,0.00,Agency staff 14/9/22 offsets PE144575,Agency Staff
Wyre Council,http://opendatacommunities.org/doc/district-council/wyre,30/12/2022,People and Places,Cultural and Related Services,132A,Quantum Staffing Solutions Ltd,20/12/2022,PE146107,74.25,0.00,Agency staff we 6/11/22,Agency Staff
Wyre Council,http://opendatacommunities.org/doc/district-council/wyre,30/12/2022,People and Places,Cultural and Related Services,132A,Quantum Staffing Solutions Ltd,16/12/2022,PE144575,920.72,0.00,Agency staff 14/9/22 offset via credit PE146017,Agency Staff
Wyre Council,http://opendatacommunities.org/doc/district-council/wyre,30/12/2022,People and Places,Cultural and Related Services,132A,Quantum Staffing Solutions Ltd,13/12/2022,PE145884,81.68,0.00,Agency staff - 4/12/22,Agency Staff
Wyre Council,http://opendatacommunities.org/doc/district-council/wyre,30/12/2022,Resources,Support Services,135B,Michael Page International Recruitment Limited,05/12/2022,RS145766,4500.00,0.00,Appointment of Interim Asset Manager,Agency Staff
Wyre Council,http://opendatacommunities.org/doc/district-council/wyre,30/12/2022,Resources,Support Services,135B,Michael Page International Recruitment Limited,22/12/2022,RS146219,2500.00,0.00,Appointment of Interim Asset Manager,Agency Staff
Wyre Council,http://opendatacommunities.org/doc/district-council/wyre,30/12/2022,Resources,Support Services,135B,Michael Page International Recruitment Limited,16/12/2022,RS146052,2500.00,0.00,Appointment of Interim Asset Manager,Agency Staff
Wyre Council,http://opendatacommunities.org/doc/district-council/wyre,30/12/2022,Resources,Support Services,135B,Michael Page International Recruitment Limited,09/12/2022,RS145868,2500.00,0.00,Appointment of Interim Asset Manager,Agency Staff
Wyre Council,http://opendatacommunities.org/doc/district-council/wyre,30/12/2022,Resources,Support Services,135B,Michael Page International Recruitment Limited,14/12/2022,RS145871,211.30,0.00,2 days per week for 6 months plus travel expenses. See ODR dated 29/07/22,Agency Staff
Wyre Council,http://opendatacommunities.org/doc/district-council/wyre,30/12/2022,Resources,Support Services,135B,Michael Page International Recruitment Limited,14/12/2022,RS145911,1782.96,0.00,2 days per week for 6 months plus travel expenses. See ODR dated 29/07/22,Agency Staff
Wyre Council,http://opendatacommunities.org/doc/district-council/wyre,30/12/2022,Resources,Support Services,135B,Michael Page International Recruitment Limited,01/12/2022,RS145658,218.45,0.00,2 days per week for 6 months plus travel expenses. See ODR dated 29/07/22,Agency Staff
Wyre Council,http://opendatacommunities.org/doc/district-council/wyre,30/12/2022,Resources,Support Services,135B,Michael Page International Recruitment Limited,01/12/2022,RS145648,891.48,0.00,2 days per week for 6 months plus travel expenses. See ODR dated 29/07/22,Agency Staff
Wyre Council,http://opendatacommunities.org/doc/district-council/wyre,30/12/2022,Resources,Housing General Fund,134A,James Andrews Recruitment Solutions Ltd,05/12/2022,RS145760,1260.00,0.00,27.11.22,Agency Staff
Wyre Council,http://opendatacommunities.org/doc/district-council/wyre,30/12/2022,Resources,Support Services,135B,Daisy Communications LTD,19/12/2022,RS145860,10.71,0.00,Monthly Phone Charges,Alarm Systems and Security - Annual
Wyre Council,http://opendatacommunities.org/doc/district-council/wyre,30/12/2022,People and Places,Planning and Development Servs,132C,M D Security,20/12/2022,PE146069,49.00,0.00,Fleetwood Market: call out to alarm sounder fault - left working,Alarm Systems and Security - Responsive
Wyre Council,http://opendatacommunities.org/doc/district-council/wyre,30/12/2022,People and Places,Planning and Development Servs,132C,M D Security,12/12/2022,PE145781,185.00,0.00,Fleetwood Market: Fitted and programmed sounder beacon in space used by studios,Alarm Systems and Security - Responsive
Wyre Council,http://opendatacommunities.org/doc/district-council/wyre,30/12/2022,People and Places,Cultural and Related Services,132A,M D Security,05/12/2022,PE142411,128.00,0.00,R15704 Replace emergency light in boiler room at New Wave cafe - credit note received to cancel this invoice PE145158,Alarm Systems and Security - Responsive
Wyre Council,http://opendatacommunities.org/doc/district-council/wyre,30/12/2022,People and Places,Support Services,135B,EAS Electrical Mechanical,12/12/2022,PE145880,2195.39,0.00,Civic Centre: planning office refurb,Alterations Payments
Wyre Council,http://opendatacommunities.org/doc/district-council/wyre,30/12/2022,People and Places,Support Services,135B,GARRY CARR BUILDING SERVICES LTD,14/12/2022,PE145953,2080.00,0.00,Civic Centre: internal decorating to rooms 174 & 174A,Alterations Payments
Wyre Council,http://opendatacommunities.org/doc/district-council/wyre,30/12/2022,People and Places,Cultural and Related Services,132A,Andrew Signs LTD,01/12/2022,PE145663,715.92,0.00,rossall tower new info panel,Amenity and Information Signs
Wyre Council,http://opendatacommunities.org/doc/district-council/wyre,30/12/2022,Finance,Support Services,135B,,21/12/2022,WPST00089828,4194.00,0.00,nov 22 apprenticeship levy,Apprenticeship Levy
Wyre Council,http://opendatacommunities.org/doc/district-council/wyre,30/12/2022,People and Places,Cultural and Related Services,132A,Tony Denton Promotions Ltd,22/12/2022,PE146250,2300.00,0.00,The Beat feat Ranking Jr,Artistes' Fees
Wyre Council,http://opendatacommunities.org/doc/district-council/wyre,30/12/2022,People and Places,Cultural and Related Services,132A,Same Difference Arts Ltd,15/12/2022,PE146011,620.00,0.00,26/11/22 Naughty Christmas Tree - Marine Hall,Artistes' Fees
Wyre Council,http://opendatacommunities.org/doc/district-council/wyre,30/12/2022,Finance,Corporate and Democratic Core,131A,NATWEST BANK,02/12/2022,WPST00086400,834.66,0.00,Nat west bank charges,Bank Charges
Wyre Council,http://opendatacommunities.org/doc/district-council/wyre,30/12/2022,Finance,Corporate and Democratic Core,131A,NATWEST BANK,22/12/2022,WPST00090026,3181.40,0.00,234473160,Bank Charges
Wyre Council,http://opendatacommunities.org/doc/district-council/wyre,30/12/2022,Finance,Corporate and Democratic Core,131A,NATWEST BANK,22/12/2022,WPST00090020,3197.51,0.00,234309380,Bank Charges
Wyre Council,http://opendatacommunities.org/doc/district-council/wyre,30/12/2022,People and Places,Environmental Services,132B,M D Security,01/12/2022,PE145618,250.00,0.00,CCTV 6 MONTHLY SERVICE CHATSWORTH DEPOT,CCTV Running Costs
Wyre Council,http://opendatacommunities.org/doc/district-council/wyre,30/12/2022,People and Places,Environmental Services,132B,N Power LTD,08/12/2022,PE145754,1.63,0.00,CCTV column electricity charges for 1-31 Oct 22 CCL,CCTV Running Costs
Wyre Council,http://opendatacommunities.org/doc/district-council/wyre,30/12/2022,People and Places,Environmental Services,132B,N Power LTD,08/12/2022,PE145754,75.79,0.00,CCTV column electricity charges for 1-31 Oct 22,CCTV Running Costs
Wyre Council,http://opendatacommunities.org/doc/district-council/wyre,30/12/2022,People and Places,Environmental Services,132B,N Power LTD,08/12/2022,PE145784,1.69,0.00,CCTV column electricity charges for 1-30 Nov22 CCL,CCTV Running Costs
Wyre Council,http://opendatacommunities.org/doc/district-council/wyre,30/12/2022,People and Places,Environmental Services,132B,N Power LTD,08/12/2022,PE145784,78.48,0.00,CCTV column electricity charges for 1-30 Nov22,CCTV Running Costs
Wyre Council,http://opendatacommunities.org/doc/district-council/wyre,30/12/2022,People and Places,Environmental Services,132B,N Power LTD,08/12/2022,PE145754,1.63,0.00,CCTV column electricity charges for 1-31 Oct 22 CCL,CCTV Running Costs
Wyre Council,http://opendatacommunities.org/doc/district-council/wyre,30/12/2022,People and Places,Environmental Services,132B,N Power LTD,08/12/2022,PE145784,51.77,0.00,CCTV column electricity charges for 1-30 Nov22,CCTV Running Costs
Wyre Council,http://opendatacommunities.org/doc/district-council/wyre,30/12/2022,People and Places,Environmental Services,132B,N Power LTD,08/12/2022,PE145784,1.68,0.00,CCTV column electricity charges for 1-30 Nov22 CCL,CCTV Running Costs
Wyre Council,http://opendatacommunities.org/doc/district-council/wyre,30/12/2022,People and Places,Environmental Services,132B,N Power LTD,08/12/2022,PE145754,49.99,0.00,CCTV column electricity charges for 1-31 Oct 22,CCTV Running Costs
Wyre Council,http://opendatacommunities.org/doc/district-council/wyre,30/12/2022,People and Places,Environmental Services,132B,N Power LTD,08/12/2022,PE145784,1.68,0.00,CCTV column electricity charges for 1-30 Nov22 CCL,CCTV Running Costs
Wyre Council,http://opendatacommunities.org/doc/district-council/wyre,30/12/2022,People and Places,Environmental Services,132B,N Power LTD,08/12/2022,PE145784,7.22,0.00,CCTV column electricity charges for 1-30 Nov22,CCTV Running Costs
Wyre Council,http://opendatacommunities.org/doc/district-council/wyre,30/12/2022,People and Places,Environmental Services,132B,N Power LTD,08/12/2022,PE145754,1.62,0.00,CCTV column electricity charges for 1-31 Oct 22 CCL,CCTV Running Costs
Wyre Council,http://opendatacommunities.org/doc/district-council/wyre,30/12/2022,People and Places,Environmental Services,132B,N Power LTD,08/12/2022,PE145754,7.00,0.00,CCTV column electricity charges for 1-31 Oct 22,CCTV Running Costs
Wyre Council,http://opendatacommunities.org/doc/district-council/wyre,30/12/2022,Resources,Support Services,135B,Konica Minolta Business Solutions UK LTD,19/12/2022,RS146031,60.38,0.00,COPY AND PRINT CHARGES  1840141295 - WECP,Central Printer/Copier Expenses
Wyre Council,http://opendatacommunities.org/doc/district-council/wyre,30/12/2022,Resources,Support Services,135B,Konica Minolta Business Solutions UK LTD,22/12/2022,RS146209,34.65,0.00,1840141295 - WECP,Central Printer/Copier Expenses
Wyre Council,http://opendatacommunities.org/doc/district-council/wyre,30/12/2022,People and Places,Street Lighting,133C,Preesall Town Council,05/12/2022,PE145720,3200.00,0.00,Grant for Preesall Festive Lights 2022-23,Christmas Lights
Wyre Council,http://opendatacommunities.org/doc/district-council/wyre,30/12/2022,People and Places,Street Lighting,133C,Thornton Festive Lights,05/12/2022,PE145721,2300.00,0.00,Grant for Thornton Festive lights 2022-23,Christmas Lights
Wyre Council,http://opendatacommunities.org/doc/district-council/wyre,30/12/2022,People and Places,Street Lighting,133C,Fleetwood Town Council,05/12/2022,PE145723,3200.00,0.00,Grant for Fleetwood Festive lights 2022-23,Christmas Lights
Wyre Council,http://opendatacommunities.org/doc/district-council/wyre,30/12/2022,People and Places,Street Lighting,133C,Poulton Partnership,05/12/2022,PE145722,3200.00,0.00,Grant for Poulton-le-Fylde Festive lights 2022-23,Christmas Lights
Wyre Council,http://opendatacommunities.org/doc/district-council/wyre,30/12/2022,Resources,Street Lighting,133C,Poulton Partnership,15/12/2022,RS146001,5.40,0.00,Refund of bank charges due to incorrect bank details used.,Christmas Lights
Wyre Council,http://opendatacommunities.org/doc/district-council/wyre,30/12/2022,People and Places,Street Lighting,133C,Friends of Cleveleys Christmas Tree Apeal,13/12/2022,PE145959,2000.00,0.00,Grant for Cleveleys Festive Lights 2022-23,Christmas Lights
Wyre Council,http://opendatacommunities.org/doc/district-council/wyre,30/12/2022,People and Places,Street Lighting,133C,Garstang Christmas Lights Appeal,13/12/2022,PE145977,3200.00,0.00,Grant for Garstang Festive Lights 2022-23,Christmas Lights
Wyre Council,http://opendatacommunities.org/doc/district-council/wyre,30/12/2022,Resources,Support Services,135B,Serco Shared Service Centre,22/12/2022,RS146217,880.00,0.00,Introduction to Business Continuity @ Emergency Planning College 2 day Residential course - 21/9/22 to 22/9/22Delegate: Stephanie Wright,Civil Contingency/Business Con. Training
Wyre Council,http://opendatacommunities.org/doc/district-council/wyre,30/12/2022,People and Places,Planning and Development Servs,132C,Key Engineering & Hygiene Supplies LTD,05/12/2022,PE145743,216.60,0.00,2PLY WHITE JUMBO TOILET ROLL,Cleaning Materials
Wyre Council,http://opendatacommunities.org/doc/district-council/wyre,30/12/2022,People and Places,Planning and Development Servs,132C,Key Engineering & Hygiene Supplies LTD,06/12/2022,PE145328,9.34,0.00,LATEX POWDER FREE GLOVES LARGE,Cleaning Materials
Wyre Council,http://opendatacommunities.org/doc/district-council/wyre,30/12/2022,People and Places,Planning and Development Servs,132C,Key Engineering & Hygiene Supplies LTD,06/12/2022,PE145328,81.18,0.00,BLUE 2 PLY CENTREFEED ROLL 150M X 180MM 410 SHEETS,Cleaning Materials
Wyre Council,http://opendatacommunities.org/doc/district-council/wyre,30/12/2022,People and Places,Planning and Development Servs,132C,Key Engineering & Hygiene Supplies LTD,06/12/2022,PE145328,6.35,0.00,RED 200GM EXEL PY MOP HEAD ( PUSH FIT),Cleaning Materials
Wyre Council,http://opendatacommunities.org/doc/district-council/wyre,30/12/2022,People and Places,Planning and Development Servs,132C,Key Engineering & Hygiene Supplies LTD,06/12/2022,PE145328,6.35,0.00,BLUE 200GM EXEL PY MOP HEAD ( PUSH FIT),Cleaning Materials
Wyre Council,http://opendatacommunities.org/doc/district-council/wyre,30/12/2022,People and Places,Planning and Development Servs,132C,Key Engineering & Hygiene Supplies LTD,06/12/2022,PE145328,11.04,0.00,POT POURRI AIR FRESHENER,Cleaning Materials
Wyre Council,http://opendatacommunities.org/doc/district-council/wyre,30/12/2022,People and Places,Planning and Development Servs,132C,Key Engineering & Hygiene Supplies LTD,06/12/2022,PE145328,51.12,0.00,Box - Evans Cyclone Bleach.,Cleaning Materials
Wyre Council,http://opendatacommunities.org/doc/district-council/wyre,30/12/2022,People and Places,Planning and Development Servs,132C,Key Engineering & Hygiene Supplies LTD,06/12/2022,PE145328,9.66,0.00,EAUFRESH NON ACIDIC POT POURRI TOILET CLEANER 1 LTR,Cleaning Materials
Wyre Council,http://opendatacommunities.org/doc/district-council/wyre,30/12/2022,People and Places,Planning and Development Servs,132C,Key Engineering & Hygiene Supplies LTD,16/12/2022,PE146002,216.60,0.00,2PLY WHITE JUMBO TOILET ROLL,Cleaning Materials
Wyre Council,http://opendatacommunities.org/doc/district-council/wyre,30/12/2022,Resources,Support Services,135B,Key Engineering & Hygiene Supplies LTD,16/12/2022,RS146048,81.18,0.00,BLUE 2 PLY CENTREFEED ROLL 150M X 180MM 410 SHEETS,Cleaning Materials
Wyre Council,http://opendatacommunities.org/doc/district-council/wyre,30/12/2022,Resources,Support Services,135B,Key Engineering & Hygiene Supplies LTD,16/12/2022,RS146045,34.08,0.00,THICKENED BLEACH 750ML,Cleaning Materials
Wyre Council,http://opendatacommunities.org/doc/district-council/wyre,30/12/2022,Resources,Support Services,135B,Key Engineering & Hygiene Supplies LTD,16/12/2022,RS146045,5.00,0.00,20 X 15 BLEACHED DISH CLOTHS EA,Cleaning Materials
Wyre Council,http://opendatacommunities.org/doc/district-council/wyre,30/12/2022,Resources,Support Services,135B,Key Engineering & Hygiene Supplies LTD,16/12/2022,RS146045,4.29,0.00,FLORATILE GENERAL PURPOSE  CLEANER 5 LTR,Cleaning Materials
Wyre Council,http://opendatacommunities.org/doc/district-council/wyre,30/12/2022,Resources,Support Services,135B,Key Engineering & Hygiene Supplies LTD,16/12/2022,RS146045,14.46,0.00,EVANS FOAMING LEMON SOAP 5L,Cleaning Materials
Wyre Council,http://opendatacommunities.org/doc/district-council/wyre,30/12/2022,Resources,Support Services,135B,Key Engineering & Hygiene Supplies LTD,16/12/2022,RS146045,53.91,0.00,AZURE FOAM WASH SOAP 1 LITRE CARTRIDGE,Cleaning Materials
Wyre Council,http://opendatacommunities.org/doc/district-council/wyre,30/12/2022,Resources,Support Services,135B,Key Engineering & Hygiene Supplies LTD,16/12/2022,RS146045,3.60,0.00,RED STRIPE DISH CLOTH EA,Cleaning Materials
Wyre Council,http://opendatacommunities.org/doc/district-council/wyre,30/12/2022,Resources,Support Services,135B,Key Engineering & Hygiene Supplies LTD,16/12/2022,RS146045,17.38,0.00,ENSURE ALCOHOL BASED SANITISER 5 LITRE,Cleaning Materials
Wyre Council,http://opendatacommunities.org/doc/district-council/wyre,30/12/2022,Resources,Support Services,135B,Key Engineering & Hygiene Supplies LTD,16/12/2022,RS146045,14.94,0.00,LIQUID SPRAY POLISH 750ML TRIGGER SPRAY,Cleaning Materials
Wyre Council,http://opendatacommunities.org/doc/district-council/wyre,30/12/2022,Resources,Support Services,135B,Key Engineering & Hygiene Supplies LTD,16/12/2022,RS146045,13.34,0.00,SAFE ZONE PLUS  5 LITRE,Cleaning Materials
Wyre Council,http://opendatacommunities.org/doc/district-council/wyre,30/12/2022,Resources,Support Services,135B,Key Engineering & Hygiene Supplies LTD,16/12/2022,RS146045,19.32,0.00,EAUFRESH NON ACIDIC POT POURRI TOILET CLEANER 1 LTR,Cleaning Materials
Wyre Council,http://opendatacommunities.org/doc/district-council/wyre,30/12/2022,Resources,Support Services,135B,Key Engineering & Hygiene Supplies LTD,16/12/2022,RS146045,18.91,0.00,11 X 18 X 18 WHITE PEDAL H/DUTY BIN LINER (1000),Cleaning Materials
Wyre Council,http://opendatacommunities.org/doc/district-council/wyre,30/12/2022,Resources,Support Services,135B,Key Engineering & Hygiene Supplies LTD,16/12/2022,RS146045,16.35,0.00,WASHING UP LIQUID 5 LTR,Cleaning Materials
Wyre Council,http://opendatacommunities.org/doc/district-council/wyre,30/12/2022,Resources,Support Services,135B,Key Engineering & Hygiene Supplies LTD,16/12/2022,RS146045,159.25,0.00,WHITE 2PLY LUXURY TOILET ROLL 320 40 PER PACK,Cleaning Materials
Wyre Council,http://opendatacommunities.org/doc/district-council/wyre,30/12/2022,Resources,Support Services,135B,Key Engineering & Hygiene Supplies LTD,16/12/2022,RS146045,220.95,0.00,1 PLY BLUE INTERFOLD 3600 SHEETS,Cleaning Materials
Wyre Council,http://opendatacommunities.org/doc/district-council/wyre,30/12/2022,Resources,Support Services,135B,Key Engineering & Hygiene Supplies LTD,16/12/2022,RS146045,21.02,0.00,MEDIUM BLACK REFUSE SACK 18X29X34 100G,Cleaning Materials
Wyre Council,http://opendatacommunities.org/doc/district-council/wyre,30/12/2022,Resources,Support Services,135B,Key Engineering & Hygiene Supplies LTD,16/12/2022,RS146045,38.32,0.00,METAL POLISH BRASSO 175ML,Cleaning Materials
Wyre Council,http://opendatacommunities.org/doc/district-council/wyre,30/12/2022,People and Places,Cultural and Related Services,132A,Key Engineering & Hygiene Supplies LTD,06/12/2022,PE145628,12.36,0.00,GENERAL BLEACH 5 LTR,Cleaning Materials
Wyre Council,http://opendatacommunities.org/doc/district-council/wyre,30/12/2022,People and Places,Cultural and Related Services,132A,Key Engineering & Hygiene Supplies LTD,06/12/2022,PE145628,3.22,0.00,EAUFRESH NON ACIDIC APPLE TOILET CLEANER 1 LTR,Cleaning Materials
Wyre Council,http://opendatacommunities.org/doc/district-council/wyre,30/12/2022,People and Places,Cultural and Related Services,132A,Key Engineering & Hygiene Supplies LTD,06/12/2022,PE145628,71.00,0.00,GREEN 1 PLY INTER-FOLD HAND TOWEL 250L X 190W 3600 SHEETS,Cleaning Materials
Wyre Council,http://opendatacommunities.org/doc/district-council/wyre,30/12/2022,People and Places,Support Services,135B,Bates Office Services Ltd,02/12/2022,PE145679,16.50,0.00,COUNTY STRING BALL MED COTTON 60M C176,Cleaning Materials
Wyre Council,http://opendatacommunities.org/doc/district-council/wyre,30/12/2022,People and Places,Cultural and Related Services,132A,Bates Office Services Ltd,02/12/2022,PE145680,23.36,0.00,KENCO COFFEE STICKS DECAF PK200,Cleaning Materials
Wyre Council,http://opendatacommunities.org/doc/district-council/wyre,30/12/2022,People and Places,Cultural and Related Services,132A,EVOLUTION CONSTRUCTION GROUP LTD,21/12/2022,PE146185,80.35,0.00,"Supply and fit replacement lock with keys, or neat and tidy boltto secure the small access door to the clock winding mechanism.  Door keeps swinging open, need regular access to wind the clock up",Clock Maintenance - Responsive
Wyre Council,http://opendatacommunities.org/doc/district-council/wyre,30/12/2022,Resources,Environmental Services,132B,Police and Crime Commissioner for Lancashire,15/12/2022,RS146018,1299.02,0.00,Contribution towards bike coding kits.,Community Development Initiatives
Wyre Council,http://opendatacommunities.org/doc/district-council/wyre,30/12/2022,Resources,Support Services,135B,Apple Retail UK Ltd,05/12/2022,RS145765,3892.50,0.00,Personalized 10.2-inch iPad Wi-Fi + Cellular 64GB - SilverEngraving: Wyre Council,Comp Hardware Purchases
Wyre Council,http://opendatacommunities.org/doc/district-council/wyre,30/12/2022,Resources,Support Services,135B,Apple Retail UK Ltd,05/12/2022,RS145752,11245.00,0.00,Personalized 10.2-inch iPad Wi-Fi + Cellular 64GB - SilverEngraving: Wyre Council,Comp Hardware Purchases
Wyre Council,http://opendatacommunities.org/doc/district-council/wyre,30/12/2022,Resources,Support Services,135B,Digital ID LTD,22/12/2022,RS146222,414.00,0.00,Pack of 100 Blue Wyre Council Lanyards (recycled).,Computer Stationery and Consumables
Wyre Council,http://opendatacommunities.org/doc/district-council/wyre,30/12/2022,Resources,Support Services,135B,Digital ID LTD,22/12/2022,RS146222,105.90,0.00,Smart 51 & 31 YMCKO Colour Ribbon inc Cleaning Roller - 250.,Computer Stationery and Consumables
Wyre Council,http://opendatacommunities.org/doc/district-council/wyre,30/12/2022,People and Places,Environmental Services,132B,Osborne Richardson,15/12/2022,PE146041,730.80,0.00,To provide Contaminated land & Air Quality Consultancy April 2022-March 2023  (Annual purchase order to draw invoices from throughout the year),Consultants Fees
Wyre Council,http://opendatacommunities.org/doc/district-council/wyre,30/12/2022,Resources,Support Services,135B,Greenhalgh Kerr,01/12/2022,RS145651,646.00,0.00,Matter L0002829 ref: 642362-5: Teshuvoh Tefilloh Tzedokoh: Charges,Consultants Fees
Wyre Council,http://opendatacommunities.org/doc/district-council/wyre,30/12/2022,Resources,Support Services,135B,Greenhalgh Kerr,01/12/2022,RS145651,303.50,0.00,Matter L0002829 ref: 642362-5: Teshuvoh Tefilloh Tzedokoh: Disbursements,Consultants Fees
Wyre Council,http://opendatacommunities.org/doc/district-council/wyre,30/12/2022,Resources,Support Services,135B,PSTAX Consulting Limited,07/12/2022,RS145836,4500.00,0.00,Market issues - VAT support and guidance (stage 1),Consultants Fees
Wyre Council,http://opendatacommunities.org/doc/district-council/wyre,30/12/2022,People and Places,Planning and Development Servs,132C,Tony Blackburn,20/12/2022,PE146110,682.01,0.00,Programme Officer for Local Plan Examination,Consultants Fees
Wyre Council,http://opendatacommunities.org/doc/district-council/wyre,30/12/2022,People and Places,Planning and Development Servs,132C,Capita Property and Infrastructure Ltd,20/12/2022,PE146106,4569.72,0.00,planning application support provided by Capita,Consultants Fees
Wyre Council,http://opendatacommunities.org/doc/district-council/wyre,30/12/2022,People and Places,Planning and Development Servs,132C,City Illuminations Ltd,16/12/2022,PE146050,12575.00,0.00,Cleveleys Christmas Festoon,Consultants Fees
Wyre Council,http://opendatacommunities.org/doc/district-council/wyre,30/12/2022,People and Places,"Cultural, Environ and Planning",137B,Vivid Resourcing Ltd,07/12/2022,PE145117,4316.50,0.00,Fleetwood Market Project (J. Burke time),Consultants Fees (New CCR)
Wyre Council,http://opendatacommunities.org/doc/district-council/wyre,30/12/2022,People and Places,"Cultural, Environ and Planning",137B,Susannah Bleakley Consulting,19/12/2022,PE146058,4954.92,0.00,ECO-CoBS Project,Consultants Fees (New CCR)
Wyre Council,http://opendatacommunities.org/doc/district-council/wyre,30/12/2022,Resources,Central Services to the Public,131C,Blackpool Council,13/12/2022,RS145897,1096.00,0.00,Covid Vaccination Van Charges. Invoice 30176997,Contain Outbreak Management Fund
Wyre Council,http://opendatacommunities.org/doc/district-council/wyre,30/12/2022,People and Places,"Cultural, Environ and Planning",137B,Marine Management Organisation,02/12/2022,PE145701,4123.38,0.00,Band 3 licence,Contract (New CCR)
Wyre Council,http://opendatacommunities.org/doc/district-council/wyre,30/12/2022,People and Places,"Cultural, Environ and Planning",137B,EON Control Solutions Limited,16/12/2022,PE145129,58957.20,0.00,Decarbonisation Scheme at Fleetwood Market,Contract (New CCR)
Wyre Council,http://opendatacommunities.org/doc/district-council/wyre,30/12/2022,Resources,"Cultural, Environ and Planning",137B,VODAFONE LIMITED,19/12/2022,RS145599,24.00,0.00,Monthly Charges,Contract (New CCR)
Wyre Council,http://opendatacommunities.org/doc/district-council/wyre,30/12/2022,People and Places,"Cultural, Environ and Planning",137B,Balfour Beatty Civil Engineering Ltd,20/12/2022,PE146091,304837.69,0.00,Preconstruction works phases 1 and 2,Contract (New CCR)
Wyre Council,http://opendatacommunities.org/doc/district-council/wyre,30/12/2022,People and Places,"Cultural, Environ and Planning",137B,Balfour Beatty Civil Engineering Ltd,20/12/2022,PE145623,24455.04,0.00,Wyre Beach Management Scheme Phase 1 - Preconstruction Works.  FAO Chloe Sumner Balfour Beatty Civil Engineering Ltd Chaddock Lane  Worsley Manchester M28 1XY,Contract (New CCR)
Wyre Council,http://opendatacommunities.org/doc/district-council/wyre,30/12/2022,People and Places,"Cultural, Environ and Planning",137B,Balfour Beatty Civil Engineering Ltd,20/12/2022,PE145623,370725.89,0.00,Preconstruction works phases 1 and 2,Contract (New CCR)
Wyre Council,http://opendatacommunities.org/doc/district-council/wyre,30/12/2022,Resources,Cultural and Related Services,132A,VODAFONE LIMITED,19/12/2022,RS145599,204.72,0.00,Monthly Charges,Corporate and Professional Subscriptions
Wyre Council,http://opendatacommunities.org/doc/district-council/wyre,30/12/2022,Finance,Current Assets,130B,,13/12/2022,WPST00088926,32164.25,0.00,ctax refunds,Council Tax Refunds
Wyre Council,http://opendatacommunities.org/doc/district-council/wyre,30/12/2022,Finance,Current Assets,130B,,05/12/2022,WPST00086626,22753.02,0.00,Ctax refunds,Council Tax Refunds
Wyre Council,http://opendatacommunities.org/doc/district-council/wyre,30/12/2022,Finance,Current Assets,130B,,20/12/2022,WPST00089764,18802.29,0.00,ctax refund,Council Tax Refunds
Wyre Council,http://opendatacommunities.org/doc/district-council/wyre,30/12/2022,People and Places,Cultural and Related Services,132A,BIG FOOT EVENTS,05/12/2022,PE145768,1775.00,0.00,Fleetwood Market Christmas Event - snow globe hire 10th Dec,Creative People and Places Contribution
Wyre Council,http://opendatacommunities.org/doc/district-council/wyre,30/12/2022,People and Places,Cultural and Related Services,132A,SONGSMITH RECORDS LTD,13/12/2022,PE145895,600.00,0.00,"For the services of the Flat Cap 2.Thursday 17th November  - Victoria Road West, Cleveleys   between 2.30pm and 4.30pm.(Performance times to be decided.)Wednesday 7th December -  Vicarage Park Community Centre, Poulton between 2pm and 4pm (Perform",Creative People and Places Contribution
Wyre Council,http://opendatacommunities.org/doc/district-council/wyre,30/12/2022,People and Places,Support Services,135B,Andrew Signs LTD,13/12/2022,PE145926,68.50,0.00,Supplied 1 x sheet of composite materials as requested by G.Scott,Daywork Materials (Excl.Tyres)
Wyre Council,http://opendatacommunities.org/doc/district-council/wyre,30/12/2022,People and Places,Support Services,135B,EK Motors Factors LTD,19/12/2022,PE146080,16.00,0.00,Parts,Daywork Materials (Excl.Tyres)
Wyre Council,http://opendatacommunities.org/doc/district-council/wyre,30/12/2022,People and Places,Support Services,135B,EK Motors Factors LTD,19/12/2022,PE146079,48.53,0.00,Parts,Daywork Materials (Excl.Tyres)
Wyre Council,http://opendatacommunities.org/doc/district-council/wyre,30/12/2022,People and Places,Support Services,135B,EK Motors Factors LTD,19/12/2022,PE146076,28.72,0.00,Parts,Daywork Materials (Excl.Tyres)
Wyre Council,http://opendatacommunities.org/doc/district-council/wyre,30/12/2022,People and Places,Support Services,135B,EK Motors Factors LTD,19/12/2022,PE146075,151.64,0.00,Parts,Daywork Materials (Excl.Tyres)
Wyre Council,http://opendatacommunities.org/doc/district-council/wyre,30/12/2022,People and Places,Environmental Services,132B,EK Motors Factors LTD,19/12/2022,PE146071,80.60,0.00,Parts,Daywork Materials (Excl.Tyres)
Wyre Council,http://opendatacommunities.org/doc/district-council/wyre,30/12/2022,People and Places,Support Services,135B,EK Motors Factors LTD,19/12/2022,PE146077,17.11,0.00,Parts,Daywork Materials (Excl.Tyres)
Wyre Council,http://opendatacommunities.org/doc/district-council/wyre,30/12/2022,People and Places,Environmental Services,132B,EK Motors Factors LTD,19/12/2022,PE146078,44.73,0.00,Parts,Daywork Materials (Excl.Tyres)
Wyre Council,http://opendatacommunities.org/doc/district-council/wyre,30/12/2022,People and Places,Environmental Services,132B,EK Motors Factors LTD,19/12/2022,PE146073,87.14,0.00,Parts,Daywork Materials (Excl.Tyres)
Wyre Council,http://opendatacommunities.org/doc/district-council/wyre,30/12/2022,People and Places,Environmental Services,132B,EK Motors Factors LTD,19/12/2022,PE146072,74.46,0.00,Parts,Daywork Materials (Excl.Tyres)
Wyre Council,http://opendatacommunities.org/doc/district-council/wyre,30/12/2022,People and Places,Housing General Fund,134A,EK Motors Factors LTD,19/12/2022,PE146074,23.34,0.00,Parts,Daywork Materials (Excl.Tyres)
Wyre Council,http://opendatacommunities.org/doc/district-council/wyre,30/12/2022,People and Places,Environmental Services,132B,EK Motors Factors LTD,19/12/2022,PE146078,44.73,0.00,Parts,Daywork Materials (Excl.Tyres)
Wyre Council,http://opendatacommunities.org/doc/district-council/wyre,30/12/2022,People and Places,Environmental Services,132B,EK Motors Factors LTD,19/12/2022,PE146070,28.72,0.00,Parts,Daywork Materials (Excl.Tyres)
Wyre Council,http://opendatacommunities.org/doc/district-council/wyre,30/12/2022,People and Places,Environmental Services,132B,EK Motors Factors LTD,19/12/2022,PE146078,44.73,0.00,Parts,Daywork Materials (Excl.Tyres)
Wyre Council,http://opendatacommunities.org/doc/district-council/wyre,30/12/2022,People and Places,Environmental Services,132B,EK Motors Factors LTD,19/12/2022,PE146078,44.73,0.00,Parts,Daywork Materials (Excl.Tyres)
Wyre Council,http://opendatacommunities.org/doc/district-council/wyre,30/12/2022,People and Places,Environmental Services,132B,Lancashire DAF,16/12/2022,PE145621,143.10,0.00,Parts,Daywork Materials (Excl.Tyres)
Wyre Council,http://opendatacommunities.org/doc/district-council/wyre,30/12/2022,People and Places,Environmental Services,132B,Lancashire DAF,16/12/2022,PE145732,251.00,0.00,MOT Test,Daywork Materials (Excl.Tyres)
Wyre Council,http://opendatacommunities.org/doc/district-council/wyre,30/12/2022,People and Places,Environmental Services,132B,Lancashire DAF,15/12/2022,PE145682,50.61,0.00,Wiring harness,Daywork Materials (Excl.Tyres)
Wyre Council,http://opendatacommunities.org/doc/district-council/wyre,30/12/2022,People and Places,Support Services,135B,Lancashire DAF,16/12/2022,PE145801,160.00,0.00,Parts,Daywork Materials (Excl.Tyres)
Wyre Council,http://opendatacommunities.org/doc/district-council/wyre,30/12/2022,People and Places,Support Services,135B,ABLE LORRY LOADERS LTD,16/12/2022,PE145952,598.74,0.00,Major Service road test and parts,Daywork Materials (Excl.Tyres)
Wyre Council,http://opendatacommunities.org/doc/district-council/wyre,30/12/2022,People and Places,Environmental Services,132B,RENTOKIL INITIAL UK LTD,02/12/2022,PE145699,96.99,0.00,Clinical waste collection and disposal services to Wyre domestic customers.  To include provision of containers for financial year 2022/23,Disposal Costs Hazardous Waste
Wyre Council,http://opendatacommunities.org/doc/district-council/wyre,30/12/2022,People and Places,Environmental Services,132B,RENTOKIL INITIAL UK LTD,02/12/2022,PE145683,22.63,0.00,Clinical waste collection and disposal services to Wyre domestic customers.  To include provision of containers for financial year 2022/23,Disposal Costs Hazardous Waste
Wyre Council,http://opendatacommunities.org/doc/district-council/wyre,30/12/2022,People and Places,Cultural and Related Services,132A,Carlsberg UK LTD,05/12/2022,PE145733,1312.67,0.00,Marine Hall bar stock,Drinks
Wyre Council,http://opendatacommunities.org/doc/district-council/wyre,30/12/2022,People and Places,Cultural and Related Services,132A,Carlsberg UK LTD,05/12/2022,PE145748,85.12,0.00,CO2 & Mixed Gas,Drinks
Wyre Council,http://opendatacommunities.org/doc/district-council/wyre,30/12/2022,People and Places,Cultural and Related Services,132A,L W C Drinks LTD,05/12/2022,PE145745,2580.91,0.00,Marine Hall bar,Drinks
Wyre Council,http://opendatacommunities.org/doc/district-council/wyre,30/12/2022,People and Places,Cultural and Related Services,132A,L W C Drinks LTD,05/12/2022,PE145716,140.58,0.00,Marine Hall bar drinks,Drinks
Wyre Council,http://opendatacommunities.org/doc/district-council/wyre,30/12/2022,People and Places,Environmental Services,132B,N Power LTD,06/12/2022,PE145755,0.29,0.00,Unmetered supply 01/10/22 to 31/10/22,Electricity
Wyre Council,http://opendatacommunities.org/doc/district-council/wyre,30/12/2022,People and Places,Environmental Services,132B,N Power LTD,09/12/2022,PE145786,0.04,0.00,Unmetered Supply Civic Centre 01/11/22 to 30/11/22 CCL,Electricity
Wyre Council,http://opendatacommunities.org/doc/district-council/wyre,30/12/2022,People and Places,Environmental Services,132B,N Power LTD,09/12/2022,PE145786,0.30,0.00,Unmetered Supply Civic Centre 01/11/22 to 30/11/22,Electricity
Wyre Council,http://opendatacommunities.org/doc/district-council/wyre,30/12/2022,People and Places,Environmental Services,132B,N Power LTD,09/12/2022,PE145785,215.68,0.00,Unmetered Supply Lighting Civic Centre 01/11/22 to 30/11/22,Electricity
Wyre Council,http://opendatacommunities.org/doc/district-council/wyre,30/12/2022,People and Places,Parking Services,133F,N Power LTD,06/12/2022,PE145728,-1723.54,0.00,Unmetered supply Lighting 01/10/22 to 31/10/22 re: IN05098729 PE145205,Electricity
Wyre Council,http://opendatacommunities.org/doc/district-council/wyre,30/12/2022,People and Places,Parking Services,133F,N Power LTD,06/12/2022,PE145755,1.78,0.00,Unmetered supply 01/10/22 to 31/10/22,Electricity
Wyre Council,http://opendatacommunities.org/doc/district-council/wyre,30/12/2022,People and Places,Parking Services,133F,N Power LTD,06/12/2022,PE145755,0.04,0.00,Unmetered supply 01/10/22 to 31/10/22 CCL,Electricity
Wyre Council,http://opendatacommunities.org/doc/district-council/wyre,30/12/2022,People and Places,Parking Services,133F,N Power LTD,06/12/2022,PE145756,289.11,0.00,Unmetered Supply Lighting 01/10/22 to 31/10/22,Electricity
Wyre Council,http://opendatacommunities.org/doc/district-council/wyre,30/12/2022,People and Places,Parking Services,133F,N Power LTD,06/12/2022,PE145757,1090.45,0.00,Unmetered Supply Lighting 01/10/22 to 31/10/22,Electricity
Wyre Council,http://opendatacommunities.org/doc/district-council/wyre,30/12/2022,People and Places,Parking Services,133F,N Power LTD,09/12/2022,PE145785,1209.61,0.00,Unmetered Supply Lighting Civic Centre 01/11/22 to 30/11/22,Electricity
Wyre Council,http://opendatacommunities.org/doc/district-council/wyre,30/12/2022,People and Places,Parking Services,133F,N Power LTD,09/12/2022,PE145786,0.04,0.00,Unmetered Supply Civic Centre 01/11/22 to 30/11/22 CCL,Electricity
Wyre Council,http://opendatacommunities.org/doc/district-council/wyre,30/12/2022,People and Places,Parking Services,133F,N Power LTD,09/12/2022,PE145787,299.27,0.00,Unmetered Supply lighting Civic Centre 01/11/22 to 30/11/22,Electricity
Wyre Council,http://opendatacommunities.org/doc/district-council/wyre,30/12/2022,People and Places,Parking Services,133F,N Power LTD,09/12/2022,PE145786,1.85,0.00,Unmetered Supply Civic Centre 01/11/22 to 30/11/22,Electricity
Wyre Council,http://opendatacommunities.org/doc/district-council/wyre,30/12/2022,People and Places,Environmental Services,132B,N Power LTD,06/12/2022,PE145757,194.44,0.00,Unmetered Supply Lighting 01/10/22 to 31/10/22,Electricity
Wyre Council,http://opendatacommunities.org/doc/district-council/wyre,30/12/2022,People and Places,Environmental Services,132B,N Power LTD,06/12/2022,PE145755,0.04,0.00,Unmetered supply 01/10/22 to 31/10/22 CCL,Electricity
Wyre Council,http://opendatacommunities.org/doc/district-council/wyre,30/12/2022,People and Places,Environmental Services,132B,Corona Energy Retail 4 Limited,14/12/2022,PE145982,15.42,0.00,Monthly Electricity charges for invoice dated 13/12/34,Electricity
Wyre Council,http://opendatacommunities.org/doc/district-council/wyre,30/12/2022,People and Places,Environmental Services,132B,Corona Energy Retail 4 Limited,14/12/2022,PE145981,5.38,0.00,Electricity Charges for Invoice dated November,Electricity
Wyre Council,http://opendatacommunities.org/doc/district-council/wyre,30/12/2022,People and Places,Cultural and Related Services,132A,Corona Energy Retail 4 Limited,14/12/2022,PE145965,227.36,0.00,"1640000233705 Coastal Observation Point, Fleetwood, FY7 8AF(01/11/22 to 30/11/22)",Electricity
Wyre Council,http://opendatacommunities.org/doc/district-council/wyre,30/12/2022,People and Places,Cultural and Related Services,132A,Corona Energy Retail 4 Limited,14/12/2022,PE145973,203.07,0.00,"1640000233705 Coastal Observation Point, Fleetwood, FY7 8AF(01/10/22 to 31/10/22)",Electricity
Wyre Council,http://opendatacommunities.org/doc/district-council/wyre,30/12/2022,People and Places,Environmental Services,132B,Corona Energy Retail 4 Limited,14/12/2022,PE145981,232.41,0.00,Electricity Charges for Invoice dated November,Electricity
Wyre Council,http://opendatacommunities.org/doc/district-council/wyre,30/12/2022,People and Places,Environmental Services,132B,Corona Energy Retail 4 Limited,14/12/2022,PE145982,488.86,0.00,Monthly Electricity charges for invoice dated 13/12/37,Electricity
Wyre Council,http://opendatacommunities.org/doc/district-council/wyre,30/12/2022,People and Places,Planning and Development Servs,132C,Corona Energy Retail 4 Limited,14/12/2022,PE145963,7560.08,0.00,"1620000784666 Main Hall, Adelaide St, Fleetwood, FY7 6AB(01/11/22 to 30/11/22)",Electricity
Wyre Council,http://opendatacommunities.org/doc/district-council/wyre,30/12/2022,People and Places,Planning and Development Servs,132C,Corona Energy Retail 4 Limited,14/12/2022,PE145971,7235.82,0.00,"1620000784666 Main Hall, Adelaide St, Fleetwood, FY7 6AB(01/10/22 to 31/10/22)",Electricity
Wyre Council,http://opendatacommunities.org/doc/district-council/wyre,30/12/2022,People and Places,Support Services,135B,Corona Energy Retail 4 Limited,14/12/2022,PE145976,11130.23,0.00,1600000162857 Civic Centre(01/10/22 to 31/10/22),Electricity
Wyre Council,http://opendatacommunities.org/doc/district-council/wyre,30/12/2022,People and Places,Support Services,135B,Corona Energy Retail 4 Limited,14/12/2022,PE145967,12985.20,0.00,1600000162857 Civic Centre(01/11/22 to 30/11/22),Electricity
Wyre Council,http://opendatacommunities.org/doc/district-council/wyre,30/12/2022,People and Places,Central Services to the Public,131C,Corona Energy Retail 4 Limited,14/12/2022,PE145981,1517.08,0.00,Electricity Charges for Invoice dated November,Electricity
Wyre Council,http://opendatacommunities.org/doc/district-council/wyre,30/12/2022,People and Places,Central Services to the Public,131C,Corona Energy Retail 4 Limited,14/12/2022,PE145982,3266.29,0.00,Monthly Electricity charges for invoice dated 13/12/38,Electricity
Wyre Council,http://opendatacommunities.org/doc/district-council/wyre,30/12/2022,People and Places,Cultural and Related Services,132A,Corona Energy Retail 4 Limited,14/12/2022,PE145982,60.49,0.00,Monthly Electricity charges for  invoice dated 13/12/22,Electricity
Wyre Council,http://opendatacommunities.org/doc/district-council/wyre,30/12/2022,People and Places,Cultural and Related Services,132A,Corona Energy Retail 4 Limited,14/12/2022,PE145981,16.70,0.00,Electricity Charges for Invoice dated November,Electricity
Wyre Council,http://opendatacommunities.org/doc/district-council/wyre,30/12/2022,People and Places,Cultural and Related Services,132A,Corona Energy Retail 4 Limited,14/12/2022,PE145964,8474.01,0.00,"1600000162875 Marine Hall, Fleetwood, FY7 6HF(01/11/22 to 30/11/22)",Electricity
Wyre Council,http://opendatacommunities.org/doc/district-council/wyre,30/12/2022,People and Places,Cultural and Related Services,132A,Corona Energy Retail 4 Limited,14/12/2022,PE145974,5964.97,0.00,"1600000162875 Marine Hall, Fleetwood, FY7 6HF(01/10/22 to 31/10/22)",Electricity
Wyre Council,http://opendatacommunities.org/doc/district-council/wyre,30/12/2022,People and Places,Cultural and Related Services,132A,Corona Energy Retail 4 Limited,14/12/2022,PE145970,740.60,0.00,"1630000670291 Promenade Caf�, Thornton-Cleveleys, FY5 1DB(01/10/22 to 31/10/22)",Electricity
Wyre Council,http://opendatacommunities.org/doc/district-council/wyre,30/12/2022,People and Places,Cultural and Related Services,132A,Corona Energy Retail 4 Limited,14/12/2022,PE145966,1075.41,0.00,"1630000670291 Promenade Caf�, Thornton-Cleveleys, FY5 1DB(01/11/22 to 30/11/22)",Electricity
Wyre Council,http://opendatacommunities.org/doc/district-council/wyre,30/12/2022,People and Places,Cultural and Related Services,132A,Corona Energy Retail 4 Limited,14/12/2022,PE145981,138.13,0.00,Electricity Charges for Invoice dated November,Electricity
Wyre Council,http://opendatacommunities.org/doc/district-council/wyre,30/12/2022,People and Places,Cultural and Related Services,132A,Corona Energy Retail 4 Limited,14/12/2022,PE145981,-0.15,0.00,Electricity Charges for Invoice dated November,Electricity
Wyre Council,http://opendatacommunities.org/doc/district-council/wyre,30/12/2022,People and Places,Cultural and Related Services,132A,Corona Energy Retail 4 Limited,14/12/2022,PE145982,263.30,0.00,Monthly Electricity charges for invoice dated 13/12/23,Electricity
Wyre Council,http://opendatacommunities.org/doc/district-council/wyre,30/12/2022,People and Places,Cultural and Related Services,132A,Corona Energy Retail 4 Limited,14/12/2022,PE145982,28.60,0.00,Monthly Electricity charges for invoice dated 13/12/24,Electricity
Wyre Council,http://opendatacommunities.org/doc/district-council/wyre,30/12/2022,People and Places,Cultural and Related Services,132A,Corona Energy Retail 4 Limited,14/12/2022,PE145981,14.30,0.00,Electricity Charges for Invoice dated November,Electricity
Wyre Council,http://opendatacommunities.org/doc/district-council/wyre,30/12/2022,People and Places,Cultural and Related Services,132A,Corona Energy Retail 4 Limited,14/12/2022,PE145981,76.76,0.00,Electricity Charges for Invoice dated November,Electricity
Wyre Council,http://opendatacommunities.org/doc/district-council/wyre,30/12/2022,People and Places,Cultural and Related Services,132A,Corona Energy Retail 4 Limited,14/12/2022,PE145981,-375.85,0.00,Electricity Charges for Invoice dated November,Electricity
Wyre Council,http://opendatacommunities.org/doc/district-council/wyre,30/12/2022,People and Places,Cultural and Related Services,132A,Corona Energy Retail 4 Limited,14/12/2022,PE145982,76.76,0.00,Monthly Electricity charges for invoice dated 13/12/26,Electricity
Wyre Council,http://opendatacommunities.org/doc/district-council/wyre,30/12/2022,People and Places,Cultural and Related Services,132A,Corona Energy Retail 4 Limited,14/12/2022,PE145982,-375.85,0.00,Monthly Electricity charges for invoice dated 13/12/40,Electricity
Wyre Council,http://opendatacommunities.org/doc/district-council/wyre,30/12/2022,People and Places,Cultural and Related Services,132A,Corona Energy Retail 4 Limited,14/12/2022,PE145982,-1678.05,0.00,Monthly Electricity charges for invoice dated 13/12/41,Electricity
Wyre Council,http://opendatacommunities.org/doc/district-council/wyre,30/12/2022,People and Places,Cultural and Related Services,132A,Corona Energy Retail 4 Limited,14/12/2022,PE145982,-87.01,0.00,Monthly Electricity charges for invoice dated 13/12/27,Electricity
Wyre Council,http://opendatacommunities.org/doc/district-council/wyre,30/12/2022,People and Places,Cultural and Related Services,132A,Corona Energy Retail 4 Limited,14/12/2022,PE145981,-1678.05,0.00,Electricity Charges for Invoice dated November,Electricity
Wyre Council,http://opendatacommunities.org/doc/district-council/wyre,30/12/2022,People and Places,Cultural and Related Services,132A,Corona Energy Retail 4 Limited,14/12/2022,PE145981,-87.01,0.00,Electricity Charges for Invoice dated November,Electricity
Wyre Council,http://opendatacommunities.org/doc/district-council/wyre,30/12/2022,People and Places,Cultural and Related Services,132A,Corona Energy Retail 4 Limited,14/12/2022,PE145981,171.09,0.00,Electricity Charges for Invoice dated November,Electricity
Wyre Council,http://opendatacommunities.org/doc/district-council/wyre,30/12/2022,People and Places,Cultural and Related Services,132A,Corona Energy Retail 4 Limited,14/12/2022,PE145981,877.51,0.00,Electricity Charges for Invoice dated November,Electricity
Wyre Council,http://opendatacommunities.org/doc/district-council/wyre,30/12/2022,People and Places,Cultural and Related Services,132A,Corona Energy Retail 4 Limited,14/12/2022,PE145981,-162.96,0.00,Electricity Charges for Invoice dated November,Electricity
Wyre Council,http://opendatacommunities.org/doc/district-council/wyre,30/12/2022,People and Places,Cultural and Related Services,132A,Corona Energy Retail 4 Limited,14/12/2022,PE145981,162.50,0.00,Electricity Charges for Invoice dated November,Electricity
Wyre Council,http://opendatacommunities.org/doc/district-council/wyre,30/12/2022,People and Places,Cultural and Related Services,132A,Corona Energy Retail 4 Limited,14/12/2022,PE145981,116.81,0.00,Electricity Charges for Invoice dated November,Electricity
Wyre Council,http://opendatacommunities.org/doc/district-council/wyre,30/12/2022,People and Places,Cultural and Related Services,132A,Corona Energy Retail 4 Limited,14/12/2022,PE145981,574.26,0.00,Electricity Charges for Invoice dated November,Electricity
Wyre Council,http://opendatacommunities.org/doc/district-council/wyre,30/12/2022,People and Places,Cultural and Related Services,132A,Corona Energy Retail 4 Limited,14/12/2022,PE145982,1567.40,0.00,Monthly Electricity charges for invoice dated 13/12/45,Electricity
Wyre Council,http://opendatacommunities.org/doc/district-council/wyre,30/12/2022,People and Places,Cultural and Related Services,132A,Corona Energy Retail 4 Limited,14/12/2022,PE145982,267.80,0.00,Monthly Electricity charges for invoice dated 13/12/32,Electricity
Wyre Council,http://opendatacommunities.org/doc/district-council/wyre,30/12/2022,People and Places,Environmental Services,132B,Corona Energy Retail 4 Limited,14/12/2022,PE145982,-64.65,0.00,Monthly Electricity charges for invoice dated 13/12/47,Electricity
Wyre Council,http://opendatacommunities.org/doc/district-council/wyre,30/12/2022,People and Places,Environmental Services,132B,Corona Energy Retail 4 Limited,14/12/2022,PE145982,-70.04,0.00,Monthly Electricity charges for invoice dated 13/12/35,Electricity
Wyre Council,http://opendatacommunities.org/doc/district-council/wyre,30/12/2022,People and Places,Environmental Services,132B,Corona Energy Retail 4 Limited,14/12/2022,PE145981,87.23,0.00,Electricity Charges for Invoice dated  November,Electricity
Wyre Council,http://opendatacommunities.org/doc/district-council/wyre,30/12/2022,People and Places,Environmental Services,132B,Corona Energy Retail 4 Limited,14/12/2022,PE145981,-1292.13,0.00,Electricity Charges for Invoice dated November,Electricity
Wyre Council,http://opendatacommunities.org/doc/district-council/wyre,30/12/2022,People and Places,Environmental Services,132B,Corona Energy Retail 4 Limited,14/12/2022,PE145981,-232.70,0.00,Electricity Charges for Invoice dated November,Electricity
Wyre Council,http://opendatacommunities.org/doc/district-council/wyre,30/12/2022,People and Places,Planning and Development Servs,132C,Corona Energy Retail 4 Limited,14/12/2022,PE145968,2277.70,0.00,"1640000184606 Council depot, Copse Road, Fleetwood, FY7 6RP(01/11/22 to 30/11/22)",Electricity
Wyre Council,http://opendatacommunities.org/doc/district-council/wyre,30/12/2022,People and Places,Planning and Development Servs,132C,Corona Energy Retail 4 Limited,14/12/2022,PE145981,-16.68,0.00,Electricity Charges for Invoice dated November,Electricity
Wyre Council,http://opendatacommunities.org/doc/district-council/wyre,30/12/2022,People and Places,Planning and Development Servs,132C,Corona Energy Retail 4 Limited,14/12/2022,PE145975,2014.31,0.00,"1640000184606 Council depot, Copse Road, Fleetwood, FY7 6RP(01/10/22 to 31/10/22)",Electricity
Wyre Council,http://opendatacommunities.org/doc/district-council/wyre,30/12/2022,People and Places,Cultural and Related Services,132A,Corona Energy Retail 4 Limited,14/12/2022,PE145982,352.58,0.00,Monthly Electricity charges for invoice dated 13/12/28,Electricity
Wyre Council,http://opendatacommunities.org/doc/district-council/wyre,30/12/2022,People and Places,Cultural and Related Services,132A,Corona Energy Retail 4 Limited,14/12/2022,PE145982,2096.06,0.00,Monthly Electricity charges for invoice dated 13/12/42,Electricity
Wyre Council,http://opendatacommunities.org/doc/district-council/wyre,30/12/2022,People and Places,Cultural and Related Services,132A,Corona Energy Retail 4 Limited,14/12/2022,PE145982,-162.96,0.00,Monthly Electricity charges for invoice dated 13/12/43,Electricity
Wyre Council,http://opendatacommunities.org/doc/district-council/wyre,30/12/2022,People and Places,Cultural and Related Services,132A,Corona Energy Retail 4 Limited,14/12/2022,PE145982,162.50,0.00,Monthly Electricity charges for invoice dated 13/12/29,Electricity
Wyre Council,http://opendatacommunities.org/doc/district-council/wyre,30/12/2022,People and Places,Environmental Services,132B,Corona Energy Retail 4 Limited,14/12/2022,PE145981,39.28,0.00,Electricity Charges for Invoice dated November,Electricity
Wyre Council,http://opendatacommunities.org/doc/district-council/wyre,30/12/2022,People and Places,Environmental Services,132B,Corona Energy Retail 4 Limited,14/12/2022,PE145972,55.49,0.00,"1600000023675 Royles Brook Pumping Station, Thornton-Cleveleys, FY5 5OX(01/10/22 to 31/10/22)",Electricity
Wyre Council,http://opendatacommunities.org/doc/district-council/wyre,30/12/2022,People and Places,Environmental Services,132B,Corona Energy Retail 4 Limited,14/12/2022,PE145969,22.31,0.00,"1600000023675 Royles Brook Pumping Station, Thornton-Cleveleys, FY5 5OX(01/11/22 to 30/11/22)",Electricity
Wyre Council,http://opendatacommunities.org/doc/district-council/wyre,30/12/2022,People and Places,Environmental Services,132B,Corona Energy Retail 4 Limited,14/12/2022,PE145982,84.13,0.00,Monthly Electricity charges for invoice dated 13/12/36,Electricity
Wyre Council,http://opendatacommunities.org/doc/district-council/wyre,30/12/2022,People and Places,Environmental Services,132B,Corona Energy Retail 4 Limited,14/12/2022,PE145981,806.66,0.00,Electricity Charges for Invoice dated November,Electricity
Wyre Council,http://opendatacommunities.org/doc/district-council/wyre,30/12/2022,People and Places,Environmental Services,132B,Corona Energy Retail 4 Limited,14/12/2022,PE145982,1703.24,0.00,Monthly Electricity charges for invoice dated 13/12/46,Electricity
Wyre Council,http://opendatacommunities.org/doc/district-council/wyre,30/12/2022,People and Places,Cultural and Related Services,132A,Corona Energy Retail 4 Limited,14/12/2022,PE145981,1084.44,0.00,Electricity Charges for Invoice dated November,Electricity
Wyre Council,http://opendatacommunities.org/doc/district-council/wyre,30/12/2022,People and Places,Cultural and Related Services,132A,Corona Energy Retail 4 Limited,14/12/2022,PE145982,2288.29,0.00,Monthly Electricity charges for invoice dated 13/12/39,Electricity
Wyre Council,http://opendatacommunities.org/doc/district-council/wyre,30/12/2022,People and Places,Cultural and Related Services,132A,Corona Energy Retail 4 Limited,14/12/2022,PE145982,136.03,0.00,Monthly Electricity charges for invoice dated 13/12/25,Electricity
Wyre Council,http://opendatacommunities.org/doc/district-council/wyre,30/12/2022,People and Places,Cultural and Related Services,132A,Corona Energy Retail 4 Limited,14/12/2022,PE145981,64.34,0.00,Electricity Charges for Invoice dated November,Electricity
Wyre Council,http://opendatacommunities.org/doc/district-council/wyre,30/12/2022,People and Places,Cultural and Related Services,132A,Corona Energy Retail 4 Limited,14/12/2022,PE145981,37.19,0.00,Electricity Charges for Invoice dated November,Electricity
Wyre Council,http://opendatacommunities.org/doc/district-council/wyre,30/12/2022,People and Places,Cultural and Related Services,132A,Corona Energy Retail 4 Limited,14/12/2022,PE145982,77.66,0.00,Monthly Electricity charges for invoice dated 13/12/30,Electricity
Wyre Council,http://opendatacommunities.org/doc/district-council/wyre,30/12/2022,People and Places,Cultural and Related Services,132A,Corona Energy Retail 4 Limited,14/12/2022,PE145982,103.33,0.00,Monthly Electricity charges for invoice dated 13/12/31,Electricity
Wyre Council,http://opendatacommunities.org/doc/district-council/wyre,30/12/2022,People and Places,Cultural and Related Services,132A,Corona Energy Retail 4 Limited,14/12/2022,PE145982,-0.15,0.00,Monthly Electricity charges for invoice dated 13/12/44,Electricity
Wyre Council,http://opendatacommunities.org/doc/district-council/wyre,30/12/2022,People and Places,Cultural and Related Services,132A,Corona Energy Retail 4 Limited,14/12/2022,PE145981,30.50,0.00,Electricity Charges for Invoice dated November,Electricity
Wyre Council,http://opendatacommunities.org/doc/district-council/wyre,30/12/2022,People and Places,Cultural and Related Services,132A,Corona Energy Retail 4 Limited,14/12/2022,PE145981,-9.68,0.00,Electricity Charges for Invoice dated November,Electricity
Wyre Council,http://opendatacommunities.org/doc/district-council/wyre,30/12/2022,People and Places,Cultural and Related Services,132A,Corona Energy Retail 4 Limited,14/12/2022,PE145982,-9.68,0.00,Monthly Electricity charges for invoice dated 13/12/33,Electricity
Wyre Council,http://opendatacommunities.org/doc/district-council/wyre,30/12/2022,People and Places,Planning and Development Servs,132C,Corona Energy Retail 4 Limited,14/12/2022,PE145982,-16.68,0.00,Monthly Electricity charges for invoice dated 13/12/48,Electricity
Wyre Council,http://opendatacommunities.org/doc/district-council/wyre,30/12/2022,People and Places,Planning and Development Servs,132C,Drax Energy Solutions Limited,20/12/2022,PE146029,125.73,0.00,"3200000534807 LL Supply c/o ABP Port Office,  Dock Ave, Fleetwood, FY7 6PS( 01/11/22 to 30/11/22)Act",Electricity
Wyre Council,http://opendatacommunities.org/doc/district-council/wyre,30/12/2022,People and Places,Planning and Development Servs,132C,Drax Energy Solutions Limited,20/12/2022,PE146028,140.47,0.00,"3200000534791 Unit 10, Dock Ave, Fleetwood,  FY7 6PS( 01/11/22 to 30/11/22)Act",Electricity
Wyre Council,http://opendatacommunities.org/doc/district-council/wyre,30/12/2022,People and Places,Planning and Development Servs,132C,Drax Energy Solutions Limited,20/12/2022,PE146027,144.57,0.00,"3200000534782 Unit 9, Dock Ave, Fleetwood,  FY7 6PS( 01/11/22 to 30/11/22)Act",Electricity
Wyre Council,http://opendatacommunities.org/doc/district-council/wyre,30/12/2022,People and Places,Planning and Development Servs,132C,Drax Energy Solutions Limited,20/12/2022,PE146022,144.57,0.00,"3200000534737 Unit 5, Dock Ave, Fleetwood,  FY7 6PS( 01/11/22 to 30/11/22)Act",Electricity
Wyre Council,http://opendatacommunities.org/doc/district-council/wyre,30/12/2022,People and Places,Planning and Development Servs,132C,Drax Energy Solutions Limited,20/12/2022,PE146021,148.66,0.00,"3200000534728 Unit 4, Dock Ave, Fleetwood,  FY7 6PS( 01/11/22 to 30/11/22)Act",Electricity
Wyre Council,http://opendatacommunities.org/doc/district-council/wyre,30/12/2022,People and Places,Planning and Development Servs,132C,Drax Energy Solutions Limited,20/12/2022,PE146026,159.31,0.00,"3200000534773 Unit 8, Dock Ave, Fleetwood,  FY7 6PS( 01/11/22 to 30/11/22)Act",Electricity
Wyre Council,http://opendatacommunities.org/doc/district-council/wyre,30/12/2022,People and Places,Planning and Development Servs,132C,Drax Energy Solutions Limited,20/12/2022,PE146025,143.74,0.00,"3200000534764 Unit 7B, Dock Ave, Fleetwood,  FY7 6PS( 01/11/22 to 30/11/22)Act",Electricity
Wyre Council,http://opendatacommunities.org/doc/district-council/wyre,30/12/2022,People and Places,Planning and Development Servs,132C,Drax Energy Solutions Limited,20/12/2022,PE146024,148.66,0.00,"3200000534755 Unit 7A, Dock Ave, Fleetwood,  FY7 6PS( 01/11/22 to 30/11/22)Act",Electricity
Wyre Council,http://opendatacommunities.org/doc/district-council/wyre,30/12/2022,People and Places,Planning and Development Servs,132C,Drax Energy Solutions Limited,20/12/2022,PE146023,166.67,0.00,"3200000534746 Unit 6, Dock Ave, Fleetwood,  FY7 6PS( 01/11/22 to 30/11/22)Act",Electricity
Wyre Council,http://opendatacommunities.org/doc/district-council/wyre,30/12/2022,People and Places,Environmental Services,132B,Engie Power Limited,21/12/2022,PE146153,275.32,0.00,"1610004845304(02/10/22 to 31/10/22)Fleetwood Corp Cemetery, Beach Rd, Fleetwood, FY7 8PH (I/A)",Electricity
Wyre Council,http://opendatacommunities.org/doc/district-council/wyre,30/12/2022,People and Places,Cultural and Related Services,132A,Engie Power Limited,21/12/2022,PE146147,83.79,0.00,"1640000400837(01/10/22 to 31/10/22)Beach Huts, The Esplanade, Fleetwood, FY7 6QD (E/E)",Electricity
Wyre Council,http://opendatacommunities.org/doc/district-council/wyre,30/12/2022,People and Places,Planning and Development Servs,132C,Engie Power Limited,21/12/2022,PE146159,72.65,0.00,"1640000947172(01/10/22 to 31/10/22)Kiosk 5, Fleetwood Market, Adelaide St, Fleetwood, FY7 6AB (I/A)",Electricity
Wyre Council,http://opendatacommunities.org/doc/district-council/wyre,30/12/2022,People and Places,Planning and Development Servs,132C,Engie Power Limited,21/12/2022,PE146155,68.89,0.00,"1640000947181(01/10/22 to 31/10/22)Kiosk 6, Fleetwood Market, Adelaide St, Fleetwood, FY7 6AB (I/A)",Electricity
Wyre Council,http://opendatacommunities.org/doc/district-council/wyre,30/12/2022,People and Places,Planning and Development Servs,132C,Engie Power Limited,21/12/2022,PE146140,49.63,0.00,"1640000947215(01/10/22 to 31/10/22)Landlord Supply, Fleetwood Market, Adelaide St, Fleetwood, FY7 6AB (I/A)",Electricity
Wyre Council,http://opendatacommunities.org/doc/district-council/wyre,30/12/2022,People and Places,Planning and Development Servs,132C,Engie Power Limited,21/12/2022,PE146142,71.99,0.00,"1640000947206(01/10/22 to 31/10/22)Kiosk 8, Fleetwood Market, Adelaide St, Fleetwood, FY7 6AB (I/A)",Electricity
Wyre Council,http://opendatacommunities.org/doc/district-council/wyre,30/12/2022,People and Places,Planning and Development Servs,132C,Engie Power Limited,21/12/2022,PE146161,125.75,0.00,"1640000947145(01/10/22 to 31/10/22)Kiosk 2, Fleetwood Market, Adelaie St, Fleetwood, FY7 6AB (I/A)",Electricity
Wyre Council,http://opendatacommunities.org/doc/district-council/wyre,30/12/2022,People and Places,Planning and Development Servs,132C,Engie Power Limited,21/12/2022,PE146165,55.59,0.00,"1640000947154(01/10/22 to 31/10/22)Kiosk 3, Fleetwood Market, Adelaide St, Fleetwood, FY7 6AB (I/A)",Electricity
Wyre Council,http://opendatacommunities.org/doc/district-council/wyre,30/12/2022,People and Places,Planning and Development Servs,132C,Engie Power Limited,21/12/2022,PE146157,255.71,0.00,"1640000947190(01/10/22 to 31/10/22)Kiosk 7, Fleetwood Market, Adelaide St, Fleetwood, FY7 6AB (I/A)",Electricity
Wyre Council,http://opendatacommunities.org/doc/district-council/wyre,30/12/2022,People and Places,Planning and Development Servs,132C,Engie Power Limited,21/12/2022,PE146170,54.95,0.00,"1640000947136(01/10/22 to 31/10/22)Kiosk 1, Fleetwood Market, Adelaide St, Fleetwood, FY7 6AB (I/A)",Electricity
Wyre Council,http://opendatacommunities.org/doc/district-council/wyre,30/12/2022,People and Places,Planning and Development Servs,132C,Engie Power Limited,21/12/2022,PE146172,141.58,0.00,"1640000947163(01/10/22 to 31/10/22)Kiosk 4, Fleetwood Market, Adelaide St, Fleetwood, FY7 6AB (I/A)",Electricity
Wyre Council,http://opendatacommunities.org/doc/district-council/wyre,30/12/2022,People and Places,Planning and Development Servs,132C,Engie Power Limited,21/12/2022,PE146166,718.80,0.00,"1610004828771(02/10/22 to 31/10/22)Council Depot, Chatsworth Day Centre, Chatsworth Ave, Fleetwood, FY7 8AP (E/E)",Electricity
Wyre Council,http://opendatacommunities.org/doc/district-council/wyre,30/12/2022,People and Places,Cultural and Related Services,132A,Engie Power Limited,21/12/2022,PE146151,264.55,0.00,"1640000118533(01/10/22 to 31/10/22)Feeder Pillar, Vicarage Rd, Poulton le Fylde, FY6 7BE (I/A)",Electricity
Wyre Council,http://opendatacommunities.org/doc/district-council/wyre,30/12/2022,People and Places,Cultural and Related Services,132A,Engie Power Limited,21/12/2022,PE146160,99.61,0.00,"1640000004924(02/10/22 to 31/10/22)Feeder Pillar, Hawthorne Park, Hawthorne Rd, Thornton Cleveleys, FY5 5DH (E/A)",Electricity
Wyre Council,http://opendatacommunities.org/doc/district-council/wyre,30/12/2022,People and Places,Cultural and Related Services,132A,Engie Power Limited,21/12/2022,PE146146,433.59,0.00,"1610004890636(02/10/22 to 31/10/22)Fishermans Walk, Lord St, Fleetwood, FY7 6DU (E/E)",Electricity
Wyre Council,http://opendatacommunities.org/doc/district-council/wyre,30/12/2022,People and Places,Cultural and Related Services,132A,Engie Power Limited,21/12/2022,PE146173,110.86,0.00,"1610004775074(02/10/22 to 31/10/22)The Windmill, Fleetwood Rd North, Thornton Cleveleys, FY5 4BP (I/A)",Electricity
Wyre Council,http://opendatacommunities.org/doc/district-council/wyre,30/12/2022,People and Places,Environmental Services,132B,Engie Power Limited,21/12/2022,PE146176,185.78,0.00,"1610013371994(02/10/22 to 31/10/22)PC, The Weind, Great Eccleston, PR3 0ZU (E/E)",Electricity
Wyre Council,http://opendatacommunities.org/doc/district-council/wyre,30/12/2022,People and Places,Environmental Services,132B,Engie Power Limited,21/12/2022,PE146174,104.98,0.00,"1620001343345(02/10/22 to 31/10/22)PC, Thornton Centre, Victoria Rd East, FY5 5DZ (I/A)",Electricity
Wyre Council,http://opendatacommunities.org/doc/district-council/wyre,30/12/2022,People and Places,Environmental Services,132B,Engie Power Limited,21/12/2022,PE146171,203.78,0.00,"1630000584632(02/10/22 to 31/10/22)PC, rear of Tesco, Rough Lea Rd, Thornton Cleveleys, FY5 1BW (E/E)",Electricity
Wyre Council,http://opendatacommunities.org/doc/district-council/wyre,30/12/2022,People and Places,Environmental Services,132B,Engie Power Limited,21/12/2022,PE146156,163.86,0.00,"1640000218200(01/10/22 to 31/10/22)PC, Bold St, Fleetwood, FY7 6BW (E/E)",Electricity
Wyre Council,http://opendatacommunities.org/doc/district-council/wyre,30/12/2022,People and Places,Environmental Services,132B,Engie Power Limited,21/12/2022,PE146158,247.78,0.00,"1630000740099(02/10/22 to 31/10/22)PC, Wyreside, Knott End on Sea, FY6 0AA (E/E)",Electricity
Wyre Council,http://opendatacommunities.org/doc/district-council/wyre,30/12/2022,People and Places,Environmental Services,132B,Engie Power Limited,21/12/2022,PE146163,369.93,0.00,"1610004863605(02/10/22 to 31/10/22)Central Toilets Kiosk, The Esplanade, Fleetwood, FY7 7BE (I/A)",Electricity
Wyre Council,http://opendatacommunities.org/doc/district-council/wyre,30/12/2022,People and Places,Environmental Services,132B,Engie Power Limited,21/12/2022,PE146169,209.81,0.00,"1610023195261(02/10/22 to 31/10/22)PC, Smallwood Hey, Pilling, Preston, PR3 6HJ (E/E)",Electricity
Wyre Council,http://opendatacommunities.org/doc/district-council/wyre,30/12/2022,People and Places,Environmental Services,132B,Engie Power Limited,21/12/2022,PE146144,126.10,0.00,"1640000258365(01/10/22 to 31/10/22)PC, River Road, Thornton Cleveleys, FY5 5LR (E/E)",Electricity
Wyre Council,http://opendatacommunities.org/doc/district-council/wyre,30/12/2022,People and Places,Environmental Services,132B,Engie Power Limited,21/12/2022,PE146143,267.31,0.00,"1610023251891(02/10/22 to 31/10/22)PC, Gubberford Lane, Scorton, PR3 1BL (E/E)",Electricity
Wyre Council,http://opendatacommunities.org/doc/district-council/wyre,30/12/2022,People and Places,Environmental Services,132B,Engie Power Limited,21/12/2022,PE146148,131.30,0.00,"1610004845322(02/10/22 to 31/10/22)PC, Beach Rd, Fleetwood, FY7 8PH (E/E)",Electricity
Wyre Council,http://opendatacommunities.org/doc/district-council/wyre,30/12/2022,People and Places,Cultural and Related Services,132A,Engie Power Limited,21/12/2022,PE146150,358.08,0.00,"1610004867432(02/10/22 to 31/10/22)Mount Hotel, Mount Rd, Fleetwood, FY7 6RA (E/E)",Electricity
Wyre Council,http://opendatacommunities.org/doc/district-council/wyre,30/12/2022,People and Places,Cultural and Related Services,132A,Engie Power Limited,21/12/2022,PE146149,149.35,0.00,"1610004867488(02/10/22 to 31/10/22)Mount Pavilion, Mount Rd, Fleetwood, FY7 6EZ (E/E)",Electricity
Wyre Council,http://opendatacommunities.org/doc/district-council/wyre,30/12/2022,People and Places,Cultural and Related Services,132A,Engie Power Limited,21/12/2022,PE146154,149.35,0.00,"1610004867441(02/10/22 to 31/10/22)Mount Hotel, Mount Rd, Fleetwood, FY7 6RA (E/E)",Electricity
Wyre Council,http://opendatacommunities.org/doc/district-council/wyre,30/12/2022,People and Places,Cultural and Related Services,132A,Engie Power Limited,21/12/2022,PE146164,433.22,0.00,"1610004897400(02/10/22 to 31/10/22)Ladies Bowls Pavilion, Memorial Park, Fleetwood, FY7 7AE (E/E)",Electricity
Wyre Council,http://opendatacommunities.org/doc/district-council/wyre,30/12/2022,People and Places,Cultural and Related Services,132A,Engie Power Limited,21/12/2022,PE146145,238.94,0.00,"1610004897385(02/10/22 to 31/10/22)Tennis Pavillion, Memorial Park, Fleetwood, FY7 7AE (E/E)",Electricity
Wyre Council,http://opendatacommunities.org/doc/district-council/wyre,30/12/2022,People and Places,Cultural and Related Services,132A,Engie Power Limited,21/12/2022,PE146152,107.38,0.00,"1610004897394(02/10/22 to 31/10/22)Bowls House, Memorial Park, Fleetwood, FY7 7AE (I/A)",Electricity
Wyre Council,http://opendatacommunities.org/doc/district-council/wyre,30/12/2022,People and Places,Cultural and Related Services,132A,Engie Power Limited,21/12/2022,PE146168,365.18,0.00,"1610004846390(02/10/22 to 31/10/22)Pump House, Model Yacht Pond, Laidleys Walk, Fleetwood, FY7 7JL (I/A)",Electricity
Wyre Council,http://opendatacommunities.org/doc/district-council/wyre,30/12/2022,People and Places,Cultural and Related Services,132A,Engie Power Limited,21/12/2022,PE146177,201.51,0.00,"1610004846520(02/10/22 to 31/10/22)Boating Lake, Laidleys Walk, Fleetwood, FY7 7HU (E/E)",Electricity
Wyre Council,http://opendatacommunities.org/doc/district-council/wyre,30/12/2022,People and Places,Cultural and Related Services,132A,Engie Power Limited,21/12/2022,PE146175,446.39,0.00,"1610004846558(02/10/22 to 31/10/22)Pump Station, The Esplanade, Fleetwood, FY7 6HF (I/A)",Electricity
Wyre Council,http://opendatacommunities.org/doc/district-council/wyre,30/12/2022,People and Places,Cultural and Related Services,132A,Engie Power Limited,21/12/2022,PE146167,433.22,0.00,"1610004863623(02/10/22 to 31/10/22)Pitch & Putt Kiosk, Carr Rd, The Esplanade, Fleetwood, FY7 6QE (E/E)",Electricity
Wyre Council,http://opendatacommunities.org/doc/district-council/wyre,30/12/2022,People and Places,Cultural and Related Services,132A,Engie Power Limited,21/12/2022,PE146141,193.17,0.00,"1630000841586(02/10/22 to 31/10/22)Garstang Tourist Info Ctr, Unit 1, Cherestanc Sq, Preston, PR3 1EF (E/E)",Electricity
Wyre Council,http://opendatacommunities.org/doc/district-council/wyre,30/12/2022,Finance,Central Services to the Public,131C,,08/12/2022,WPST00087306,14250.00,0.00,energy rebate 16/9,Energy Rebate Payment
Wyre Council,http://opendatacommunities.org/doc/district-council/wyre,30/12/2022,Finance,Central Services to the Public,131C,,08/12/2022,WPST00087307,7650.00,0.00,ER 26/9,Energy Rebate Payment
Wyre Council,http://opendatacommunities.org/doc/district-council/wyre,30/12/2022,Finance,Central Services to the Public,131C,,08/12/2022,WPST00087309,2400.00,0.00,ER 28/9/2022,Energy Rebate Payment
Wyre Council,http://opendatacommunities.org/doc/district-council/wyre,30/12/2022,People and Places,Planning and Development Servs,132C,Twelve Event Management LTD,08/12/2022,PE145866,6934.89,0.00,Catering for Wyre Business Awards 2022,Event Hospitality
Wyre Council,http://opendatacommunities.org/doc/district-council/wyre,30/12/2022,People and Places,Planning and Development Servs,132C,Twelve Event Management LTD,08/12/2022,PE145865,178.00,0.00,Napkins for the Wyre Business Awards.,Event Hospitality
Wyre Council,http://opendatacommunities.org/doc/district-council/wyre,30/12/2022,People and Places,Planning and Development Servs,132C,Sophisticated Events,08/12/2022,PE145864,1625.00,0.00,Dressing of tables for the Wyre Business Awards 2022,Event Hospitality
Wyre Council,http://opendatacommunities.org/doc/district-council/wyre,30/12/2022,People and Places,Planning and Development Servs,132C,DANIEL SINGS,05/12/2022,PE145742,500.00,0.00,Entertainment for the Wyre Business Awards 2022,Event Hospitality
Wyre Council,http://opendatacommunities.org/doc/district-council/wyre,30/12/2022,People and Places,Planning and Development Servs,132C,Wingate Media Limited,20/12/2022,PE146126,500.00,0.00,Wyre Business Awards - videographer,Event Hospitality
Wyre Council,http://opendatacommunities.org/doc/district-council/wyre,30/12/2022,People and Places,Cultural and Related Services,132A,Fleetwood Town Community Trust,12/12/2022,PE145881,7390.00,0.00,"TRYSPORT co-ordination and delivery quarter 2, 2022/23, delivered by FTFCCT.",External Coaching
Wyre Council,http://opendatacommunities.org/doc/district-council/wyre,30/12/2022,Resources,Cultural and Related Services,132A,Fylde Coast Holiday Club,20/12/2022,RS146105,4488.00,0.00,Week One - Christmas HAF 2022: 19.12.22 ? 22.12.22Holiday club at Fleetwood High School from 08:30 ? 16:00. 4 sessions per week per child.,External Coaching
Wyre Council,http://opendatacommunities.org/doc/district-council/wyre,30/12/2022,People and Places,Cultural and Related Services,132A,Nightingale Environmental Ltd,16/12/2022,PE146053,700.00,0.00,2nd treatment of Knotweed at Stanah,External Contractor
Wyre Council,http://opendatacommunities.org/doc/district-council/wyre,30/12/2022,People and Places,Public Transport,133G,Hydrosphere UK Ltd,02/12/2022,PE145702,848.00,0.00,Your quotation SO5065Please provide VLB-5X-G07 standard solar navigational light (green) set to Fixed 2M.Include delivery to   Paul Long   Wyre Civic Centre   Breck Road   Poulton-le-Fylde   FY6 7PU,Ferry Dock Maintenance
Wyre Council,http://opendatacommunities.org/doc/district-council/wyre,30/12/2022,People and Places,Planning and Development Servs,132C,AvantiGas ON Ltd,09/12/2022,PE145828,5817.68,0.00,Adelaide St. Gas Charges for the period 01/11/22-30/11/22,Gas
Wyre Council,http://opendatacommunities.org/doc/district-council/wyre,30/12/2022,People and Places,Planning and Development Servs,132C,AvantiGas ON Ltd,09/12/2022,PE145826,123.11,0.00,Gas Charges for the period 01/11/22-30/11/22,Gas
Wyre Council,http://opendatacommunities.org/doc/district-council/wyre,30/12/2022,People and Places,Cultural and Related Services,132A,AvantiGas ON Ltd,09/12/2022,PE145827,784.46,0.00,Thornton little theatre Gas Charges for the period 01/11/22-30/11/22,Gas
Wyre Council,http://opendatacommunities.org/doc/district-council/wyre,30/12/2022,People and Places,Support Services,135B,AvantiGas ON Ltd,09/12/2022,PE145829,4652.88,0.00,Civic Centre Gas Charges for the period 01/11/22-30/11/2022,Gas
Wyre Council,http://opendatacommunities.org/doc/district-council/wyre,30/12/2022,People and Places,Cultural and Related Services,132A,Keep Britain Tidy,05/12/2022,PE145738,339.00,0.00,"2022 / 2023 green flag application for The Mount, Fleetwood for 339",Green Flag and Other Awards
Wyre Council,http://opendatacommunities.org/doc/district-council/wyre,30/12/2022,People and Places,Cultural and Related Services,132A,Keep Britain Tidy,05/12/2022,PE145739,339.00,0.00,"Green Flag Application  Memorial Park, Fleetwood",Green Flag and Other Awards
Wyre Council,http://opendatacommunities.org/doc/district-council/wyre,30/12/2022,Resources,Cultural and Related Services,132A,Konica Minolta Business Solutions UK LTD,22/12/2022,RS146209,24.09,0.00,Rental Charges - 26/09/2022 - 35/03/2023 1840141270 - Visit Garstang,Hire of Tools or Equipment
Wyre Council,http://opendatacommunities.org/doc/district-council/wyre,30/12/2022,Resources,Cultural and Related Services,132A,Konica Minolta Business Solutions UK LTD,19/12/2022,RS146031,47.84,0.00,1840141270 - Garstang TIC,Hire of Tools or Equipment
Wyre Council,http://opendatacommunities.org/doc/district-council/wyre,30/12/2022,Resources,Planning and Development Servs,132C,Konica Minolta Business Solutions UK LTD,19/12/2022,RS146031,19.62,0.00,1840080773 - Fleetwood Market,Hire of Tools or Equipment
Wyre Council,http://opendatacommunities.org/doc/district-council/wyre,30/12/2022,Resources,Planning and Development Servs,132C,Konica Minolta Business Solutions UK LTD,22/12/2022,RS146209,34.65,0.00,1840080773 - Fleetwood Market,Hire of Tools or Equipment
Wyre Council,http://opendatacommunities.org/doc/district-council/wyre,30/12/2022,Resources,Support Services,135B,Konica Minolta Business Solutions UK LTD,05/12/2022,RS145706,1510.65,0.00,"Bizhub C300i - Equipment numbers 1825856503,1825856487, 1825843155, 1825856493, 1825856455, 1825856489, 1825856490,1825843157, 1825856492, 1825863267, 1825858491, 1825856452, 1900083122, 190083356, 190083035 Contract number 420746628 - 29th May 2022 - 25t",Hire of Tools or Equipment
Wyre Council,http://opendatacommunities.org/doc/district-council/wyre,30/12/2022,Resources,Support Services,135B,Konica Minolta Business Solutions UK LTD,09/12/2022,RS145863,723.45,0.00,Rental Charges - Bizhub PRO 1100 A799021001634 - Equipment no 1823533444                             Bizhub C458 A79M021038576 - Equipment no 1823440258  For the period of 1st June 2022 - 31st May 2023,Hire of Tools or Equipment
Wyre Council,http://opendatacommunities.org/doc/district-council/wyre,30/12/2022,Resources,Support Services,135B,Konica Minolta Business Solutions UK LTD,01/12/2022,RS145613,879.71,0.00,Copy and print charges 1st March 2022 - 28th February 2023  1823533444 - Bizhub PRO 1100 1823440258 - Bizhub C458,Hire of Tools or Equipment
Wyre Council,http://opendatacommunities.org/doc/district-council/wyre,30/12/2022,People and Places,Support Services,135B,M J Wilkinson,22/12/2022,PE146227,236.56,0.00,Hire of Telehandler @ Memorial Park Order no 1078627/10/22,Hire of Tools or Equipment
Wyre Council,http://opendatacommunities.org/doc/district-council/wyre,30/12/2022,People and Places,Support Services,135B,M J Wilkinson,22/12/2022,PE146227,90.00,0.00,Each way transport 45.00 each way,Hire of Tools or Equipment
Wyre Council,http://opendatacommunities.org/doc/district-council/wyre,30/12/2022,Finance,Central Services to the Public,131C,,15/12/2022,WPST00089174,10000.00,0.00,Household Support Grant,Household Support Fund
Wyre Council,http://opendatacommunities.org/doc/district-council/wyre,30/12/2022,Finance,Central Services to the Public,131C,,15/12/2022,WPST00089175,79200.00,0.00,Household Support Grant,Household Support Fund
Wyre Council,http://opendatacommunities.org/doc/district-council/wyre,30/12/2022,Resources,Central Services to the Public,131C,HELPPKE CIC,12/12/2022,RS145875,7000.00,0.00,Household Support Fund - Grant,Household Support Fund
Wyre Council,http://opendatacommunities.org/doc/district-council/wyre,30/12/2022,People and Places,Environmental Services,132B,Poulton Pets LTD,20/12/2022,PE146121,1497.00,0.00,Provision of stray dog kennelling service 2022/23,Impounded Dogs Costs
Wyre Council,http://opendatacommunities.org/doc/district-council/wyre,30/12/2022,Resources,Support Services,135B,Nominet UK,19/12/2022,RS145013,69.63,0.00,Community Charge,Internet and Telephone Charges
Wyre Council,http://opendatacommunities.org/doc/district-council/wyre,30/12/2022,Resources,Support Services,135B,Nominet UK,19/12/2022,RS145013,691.31,0.00,Call off contract year 3 - Nominet PSN DNS service,Internet and Telephone Charges
Wyre Council,http://opendatacommunities.org/doc/district-council/wyre,30/12/2022,Resources,Support Services,135B,Nominet UK,19/12/2022,RS145013,5.00,0.00,Invoice Charge,Internet and Telephone Charges
Wyre Council,http://opendatacommunities.org/doc/district-council/wyre,30/12/2022,Resources,Cultural and Related Services,132A,Daisy Communications LTD,19/12/2022,RS145860,10.71,0.00,Monthly Phone Charges,Internet and Telephone Charges
Wyre Council,http://opendatacommunities.org/doc/district-council/wyre,30/12/2022,Resources,Support Services,135B,Daisy Communications LTD,19/12/2022,RS145860,16.95,0.00,Monthly Phone Charges,Internet and Telephone Charges
Wyre Council,http://opendatacommunities.org/doc/district-council/wyre,30/12/2022,Resources,Cultural and Related Services,132A,Daisy Communications LTD,19/12/2022,RS145860,27.65,0.00,Monthly Phone Charges,Internet and Telephone Charges
Wyre Council,http://opendatacommunities.org/doc/district-council/wyre,30/12/2022,Resources,Corporate and Democratic Core,131A,Daisy Communications LTD,19/12/2022,RS145860,10.71,0.00,Monthly Phone Charges,Internet and Telephone Charges
Wyre Council,http://opendatacommunities.org/doc/district-council/wyre,30/12/2022,Resources,Support Services,135B,Daisy Communications LTD,19/12/2022,RS145860,21.42,0.00,Monthly Phone Charges,Internet and Telephone Charges
Wyre Council,http://opendatacommunities.org/doc/district-council/wyre,30/12/2022,Resources,Support Services,135B,Daisy Communications LTD,19/12/2022,RS145860,44.27,0.00,Monthly Phone Charges,Internet and Telephone Charges
Wyre Council,http://opendatacommunities.org/doc/district-council/wyre,30/12/2022,Resources,Support Services,135B,Forbes Solicitors,13/12/2022,RS145887,408.50,0.00,Professional fees - 27/10/22 - 27/11/22,Legal Fees
Wyre Council,http://opendatacommunities.org/doc/district-council/wyre,30/12/2022,Resources,Support Services,135B,Forbes Solicitors,14/12/2022,RS145994,2000.50,0.00,Employment Advice ,Legal Fees
Wyre Council,http://opendatacommunities.org/doc/district-council/wyre,30/12/2022,Resources,Support Services,135B,CITADEL CHAMBERS,20/12/2022,RS146124,1000.00,0.00,Collette Halstead v WBC - taxi appeal - Brief,Legal Fees
Wyre Council,http://opendatacommunities.org/doc/district-council/wyre,30/12/2022,Resources,Parking Services,133F,VODAFONE LIMITED,19/12/2022,RS145599,12.00,0.00,Monthly Charges,Maintenance of Tools or Equipment
Wyre Council,http://opendatacommunities.org/doc/district-council/wyre,30/12/2022,People and Places,Planning and Development Servs,132C,PSM Group,13/12/2022,PE145929,585.00,0.00,repairs to 6 planters replacement of screens staining and broken wheels in storm,Maintenance of Tools or Equipment
Wyre Council,http://opendatacommunities.org/doc/district-council/wyre,30/12/2022,People and Places,Cultural and Related Services,132A,EVOLUTION CONSTRUCTION GROUP LTD,21/12/2022,PE146188,36.83,0.00,create a base for new large fridge in Wyre bar,Maintenance of Tools or Equipment
Wyre Council,http://opendatacommunities.org/doc/district-council/wyre,30/12/2022,People and Places,Highways,133B,Dr Tree Surgeons,15/12/2022,PE146033,380.00,0.00,Quote Number: 648 - Quote Ref: Thornton Crown Bowling Club1 To Deadwood pine trees and  dy up split out branch. 380.00 380.00Total Net Amount: 380.00VAT @ 20%: 76.00Quote Total: 456.00,Maintenance of Trees and Shrubs
Wyre Council,http://opendatacommunities.org/doc/district-council/wyre,30/12/2022,People and Places,Highways,133B,Dr Tree Surgeons,21/12/2022,PE146216,220.00,0.00,Quote Number: 680- Quote Ref: 17 Grizedale Ave1 Crown reduce one semi mature birch tree in contact with BT wires.( 3years clearance)220.00 Total Net Amount: 220.00VAT @ 20%: 44.00Quote Total: 264.00,Maintenance of Trees and Shrubs
Wyre Council,http://opendatacommunities.org/doc/district-council/wyre,30/12/2022,People and Places,Highways,133B,Dr Tree Surgeons,22/12/2022,PE146215,1320.00,0.00,Quotation 642 (Fleetwood)x 15 tree works jobs on Highways  net 1410 vat at 20% 282Total 1692,Maintenance of Trees and Shrubs
Wyre Council,http://opendatacommunities.org/doc/district-council/wyre,30/12/2022,People and Places,Environmental Services,132B,Everglades Nurseries TD,21/12/2022,PE146182,3472.65,0.00,Document No: 168178   Date:10/10/2022 Item 1SundriesBamboo Canes 3 ft 1000 0.14 T1 140.00DELIVERY 1 0.00 T1 0.00Rabbit Gaurds 45cm 1000 0.88 T1 880.002001TransplantsAcer campestre 40/60 cm 405 0.65 T1 263.25Betula pubescens 40/60,Maintenance of Trees and Shrubs
Wyre Council,http://opendatacommunities.org/doc/district-council/wyre,30/12/2022,People and Places,Support Services,135B,EK Motors Factors LTD,19/12/2022,PE146083,13.68,0.00,Parts,Materials and Consumables
Wyre Council,http://opendatacommunities.org/doc/district-council/wyre,30/12/2022,People and Places,Support Services,135B,EK Motors Factors LTD,19/12/2022,PE146082,53.96,0.00,Parts,Materials and Consumables
Wyre Council,http://opendatacommunities.org/doc/district-council/wyre,30/12/2022,People and Places,Support Services,135B,EK Motors Factors LTD,19/12/2022,PE146081,21.64,0.00,Parts,Materials and Consumables
Wyre Council,http://opendatacommunities.org/doc/district-council/wyre,30/12/2022,People and Places,Support Services,135B,EK Motors Factors LTD,19/12/2022,PE146084,19.98,0.00,Parts,Materials and Consumables
Wyre Council,http://opendatacommunities.org/doc/district-council/wyre,30/12/2022,People and Places,Support Services,135B,EK Motors Factors LTD,19/12/2022,PE146085,40.59,0.00,Parts,Materials and Consumables
Wyre Council,http://opendatacommunities.org/doc/district-council/wyre,30/12/2022,People and Places,Environmental Services,132B,Hydrosphere UK Ltd,08/12/2022,PE145859,848.00,0.00,Your quotation #SO5293Provide one no. VLB-5X Self contained standard solar beacon (Green)Flah set to on 0.5s off 3.5s Flash code 322 5 CdDelivery to Paul LongR135Civic CentreBreck RoadPoulton-le-FyldeFY6 7PU,Materials and Consumables
Wyre Council,http://opendatacommunities.org/doc/district-council/wyre,30/12/2022,Resources,Support Services,135B,Bolton at Home Ltd,22/12/2022,RS145983,500.00,0.00,Housing Forum - 22/23,Membership Fees
Wyre Council,http://opendatacommunities.org/doc/district-council/wyre,30/12/2022,Resources,Housing General Fund,134A,Mobility Care Services,02/12/2022,RS145667,287.00,0.00,REDACT,Minor Adaptations
Wyre Council,http://opendatacommunities.org/doc/district-council/wyre,30/12/2022,Resources,Housing General Fund,134A,Mobility Care Services,02/12/2022,RS145666,440.00,0.00,REDACT,Minor Adaptations
Wyre Council,http://opendatacommunities.org/doc/district-council/wyre,30/12/2022,Resources,Housing General Fund,134A,Mobility Care Services,07/12/2022,RS145816,286.00,0.00,REDACT,Minor Adaptations
Wyre Council,http://opendatacommunities.org/doc/district-council/wyre,30/12/2022,Resources,Housing General Fund,134A,Mobility Care Services,07/12/2022,RS145815,132.00,0.00,REDACT,Minor Adaptations
Wyre Council,http://opendatacommunities.org/doc/district-council/wyre,30/12/2022,Resources,Housing General Fund,134A,Mobility Care Services,07/12/2022,RS145814,66.00,0.00,REDACT,Minor Adaptations
Wyre Council,http://opendatacommunities.org/doc/district-council/wyre,30/12/2022,Resources,Housing General Fund,134A,Mobility Care Services,07/12/2022,RS145813,66.00,0.00,REDACT,Minor Adaptations
Wyre Council,http://opendatacommunities.org/doc/district-council/wyre,30/12/2022,Resources,Housing General Fund,134A,Mobility Care Services,07/12/2022,RS145812,66.00,0.00,REDACT,Minor Adaptations
Wyre Council,http://opendatacommunities.org/doc/district-council/wyre,30/12/2022,Resources,Housing General Fund,134A,Mobility Care Services,07/12/2022,RS145811,506.00,0.00,REDACT,Minor Adaptations
Wyre Council,http://opendatacommunities.org/doc/district-council/wyre,30/12/2022,Resources,Housing General Fund,134A,Mobility Care Services,07/12/2022,RS145810,198.00,0.00,REDACT,Minor Adaptations
Wyre Council,http://opendatacommunities.org/doc/district-council/wyre,30/12/2022,Resources,Housing General Fund,134A,Mobility Care Services,07/12/2022,RS145809,198.00,0.00,REDACT,Minor Adaptations
Wyre Council,http://opendatacommunities.org/doc/district-council/wyre,30/12/2022,Resources,Housing General Fund,134A,Mobility Care Services,02/12/2022,RS145671,66.00,0.00,REDACT,Minor Adaptations
Wyre Council,http://opendatacommunities.org/doc/district-council/wyre,30/12/2022,Resources,Housing General Fund,134A,Mobility Care Services,02/12/2022,RS145670,132.00,0.00,REDACT,Minor Adaptations
Wyre Council,http://opendatacommunities.org/doc/district-council/wyre,30/12/2022,Resources,Housing General Fund,134A,Mobility Care Services,02/12/2022,RS145669,66.00,0.00,REDACT,Minor Adaptations
Wyre Council,http://opendatacommunities.org/doc/district-council/wyre,30/12/2022,Resources,Housing General Fund,134A,Mobility Care Services,02/12/2022,RS145668,690.00,0.00,REDACT,Minor Adaptations
Wyre Council,http://opendatacommunities.org/doc/district-council/wyre,30/12/2022,Resources,Housing General Fund,134A,J A DICKENS LIMITED,02/12/2022,RS145672,150.00,0.00,REDACT,Minor Adaptations
Wyre Council,http://opendatacommunities.org/doc/district-council/wyre,30/12/2022,Resources,Housing General Fund,134A,J A DICKENS LIMITED,02/12/2022,RS145672,158.00,0.00,REDACT,Minor Adaptations
Wyre Council,http://opendatacommunities.org/doc/district-council/wyre,30/12/2022,Resources,Housing General Fund,134A,J A DICKENS LIMITED,02/12/2022,RS145673,150.00,0.00,REDACT,Minor Adaptations
Wyre Council,http://opendatacommunities.org/doc/district-council/wyre,30/12/2022,Resources,Housing General Fund,134A,J A DICKENS LIMITED,02/12/2022,RS145673,158.00,0.00,REDACT,Minor Adaptations
Wyre Council,http://opendatacommunities.org/doc/district-council/wyre,30/12/2022,Resources,Housing General Fund,134A,J A DICKENS LIMITED,02/12/2022,RS145674,80.00,0.00,REDACT,Minor Adaptations
Wyre Council,http://opendatacommunities.org/doc/district-council/wyre,30/12/2022,Resources,Housing General Fund,134A,J A DICKENS LIMITED,02/12/2022,RS145674,53.00,0.00,REDACT,Minor Adaptations
Wyre Council,http://opendatacommunities.org/doc/district-council/wyre,30/12/2022,Resources,Housing General Fund,134A,J A DICKENS LIMITED,02/12/2022,RS145675,80.00,0.00,REDACT,Minor Adaptations
Wyre Council,http://opendatacommunities.org/doc/district-council/wyre,30/12/2022,Resources,Housing General Fund,134A,J A DICKENS LIMITED,02/12/2022,RS145675,74.00,0.00,REDACT,Minor Adaptations
Wyre Council,http://opendatacommunities.org/doc/district-council/wyre,30/12/2022,Resources,Housing General Fund,134A,J A DICKENS LIMITED,02/12/2022,RS145676,80.00,0.00,REDACT,Minor Adaptations
Wyre Council,http://opendatacommunities.org/doc/district-council/wyre,30/12/2022,Resources,Housing General Fund,134A,J A DICKENS LIMITED,02/12/2022,RS145676,74.00,0.00,REDACT,Minor Adaptations
Wyre Council,http://opendatacommunities.org/doc/district-council/wyre,30/12/2022,Resources,Housing General Fund,134A,J A DICKENS LIMITED,02/12/2022,RS145677,380.00,0.00,REDACT,Minor Adaptations
Wyre Council,http://opendatacommunities.org/doc/district-council/wyre,30/12/2022,Resources,Housing General Fund,134A,J A DICKENS LIMITED,02/12/2022,RS145677,450.00,0.00,REDACT,Minor Adaptations
Wyre Council,http://opendatacommunities.org/doc/district-council/wyre,30/12/2022,Resources,Current Assets,130B,SME HCI Ltd,14/12/2022,RS145955,6006.90,0.00,INVOICE NUMBER: 142846,Miscellaneous Debits
Wyre Council,http://opendatacommunities.org/doc/district-council/wyre,30/12/2022,Resources,Current Assets,130B,SME HCI Ltd,14/12/2022,RS145956,3955.40,0.00,INVOICE NUMBER: 142245,Miscellaneous Debits
Wyre Council,http://opendatacommunities.org/doc/district-council/wyre,30/12/2022,Resources,Support Services,135B,VODAFONE LIMITED,19/12/2022,RS145599,72.81,0.00,Monthly Charges,Mobile Devices
Wyre Council,http://opendatacommunities.org/doc/district-council/wyre,30/12/2022,Resources,Support Services,135B,VODAFONE LIMITED,19/12/2022,RS145599,31.35,0.00,Monthly Charges,Mobile Devices
Wyre Council,http://opendatacommunities.org/doc/district-council/wyre,30/12/2022,Resources,Central Services to the Public,131C,VODAFONE LIMITED,19/12/2022,RS145599,12.00,0.00,Monthly Charges,Mobile Devices
Wyre Council,http://opendatacommunities.org/doc/district-council/wyre,30/12/2022,Resources,Support Services,135B,VODAFONE LIMITED,19/12/2022,RS145599,12.00,0.00,Monthly Charges,Mobile Devices
Wyre Council,http://opendatacommunities.org/doc/district-council/wyre,30/12/2022,Resources,Support Services,135B,VODAFONE LIMITED,19/12/2022,RS145599,12.00,0.00,Monthly Charges,Mobile Devices
Wyre Council,http://opendatacommunities.org/doc/district-council/wyre,30/12/2022,Resources,Support Services,135B,VODAFONE LIMITED,19/12/2022,RS145599,64.00,0.00,Monthly Charges,Mobile Devices
Wyre Council,http://opendatacommunities.org/doc/district-council/wyre,30/12/2022,Resources,Support Services,135B,VODAFONE LIMITED,19/12/2022,RS145599,196.00,0.00,Monthly Charges,Mobile Devices
Wyre Council,http://opendatacommunities.org/doc/district-council/wyre,30/12/2022,Resources,Support Services,135B,VODAFONE LIMITED,19/12/2022,RS145599,12.00,0.00,Monthly Charges,Mobile Devices
Wyre Council,http://opendatacommunities.org/doc/district-council/wyre,30/12/2022,Resources,Central Services to the Public,131C,VODAFONE LIMITED,19/12/2022,RS145599,12.00,0.00,Monthly Charges,Mobile Devices
Wyre Council,http://opendatacommunities.org/doc/district-council/wyre,30/12/2022,Resources,Environmental Services,132B,VODAFONE LIMITED,19/12/2022,RS145599,80.00,0.00,Monthly Charges,Mobile Devices
Wyre Council,http://opendatacommunities.org/doc/district-council/wyre,30/12/2022,Resources,Support Services,135B,VODAFONE LIMITED,19/12/2022,RS145599,208.83,0.00,Monthly Charges,Mobile Devices
Wyre Council,http://opendatacommunities.org/doc/district-council/wyre,30/12/2022,Resources,Support Services,135B,VODAFONE LIMITED,19/12/2022,RS145599,36.00,0.00,Monthly Charges,Mobile Devices
Wyre Council,http://opendatacommunities.org/doc/district-council/wyre,30/12/2022,Resources,Support Services,135B,VODAFONE LIMITED,19/12/2022,RS145599,45.00,0.00,Monthly Charges,Mobile Devices
Wyre Council,http://opendatacommunities.org/doc/district-council/wyre,30/12/2022,Resources,Support Services,135B,VODAFONE LIMITED,19/12/2022,RS145599,12.00,0.00,Monthly Charges,Mobile Devices
Wyre Council,http://opendatacommunities.org/doc/district-council/wyre,30/12/2022,Resources,Environmental Services,132B,VODAFONE LIMITED,19/12/2022,RS145599,29.00,0.00,Monthly Charges,Mobile Devices
Wyre Council,http://opendatacommunities.org/doc/district-council/wyre,30/12/2022,Resources,Housing General Fund,134A,VODAFONE LIMITED,19/12/2022,RS145599,64.00,0.00,Monthly Charges,Mobile Devices
Wyre Council,http://opendatacommunities.org/doc/district-council/wyre,30/12/2022,Resources,Housing General Fund,134A,VODAFONE LIMITED,19/12/2022,RS145599,4.00,0.00,Monthly Charges,Mobile Devices
Wyre Council,http://opendatacommunities.org/doc/district-council/wyre,30/12/2022,Resources,Support Services,135B,VODAFONE LIMITED,19/12/2022,RS145599,36.00,0.00,Monthly Charges,Mobile Devices
Wyre Council,http://opendatacommunities.org/doc/district-council/wyre,30/12/2022,Resources,Cultural and Related Services,132A,VODAFONE LIMITED,19/12/2022,RS145599,62.44,0.00,Monthly Charges,Mobile Devices
Wyre Council,http://opendatacommunities.org/doc/district-council/wyre,30/12/2022,Resources,Support Services,135B,VODAFONE LIMITED,19/12/2022,RS145599,132.91,0.00,Monthly Charges,Mobile Devices
Wyre Council,http://opendatacommunities.org/doc/district-council/wyre,30/12/2022,Resources,Support Services,135B,VODAFONE LIMITED,19/12/2022,RS145599,52.00,0.00,Monthly Charges,Mobile Devices
Wyre Council,http://opendatacommunities.org/doc/district-council/wyre,30/12/2022,Resources,Support Services,135B,VODAFONE LIMITED,19/12/2022,RS145599,20.00,0.00,Monthly Charges,Mobile Devices
Wyre Council,http://opendatacommunities.org/doc/district-council/wyre,30/12/2022,Resources,Support Services,135B,VODAFONE LIMITED,19/12/2022,RS145599,144.00,0.00,Monthly Charges,Mobile Devices
Wyre Council,http://opendatacommunities.org/doc/district-council/wyre,30/12/2022,Resources,Support Services,135B,VODAFONE LIMITED,19/12/2022,RS145599,11.32,0.00,Monthly Charges,Mobile Devices
Wyre Council,http://opendatacommunities.org/doc/district-council/wyre,30/12/2022,Resources,Support Services,135B,VODAFONE LIMITED,19/12/2022,RS145599,12.30,0.00,Monthly Charges,Mobile Devices
Wyre Council,http://opendatacommunities.org/doc/district-council/wyre,30/12/2022,Resources,Cultural and Related Services,132A,VODAFONE LIMITED,19/12/2022,RS145599,12.00,0.00,Monthly Charges,Mobile Devices
Wyre Council,http://opendatacommunities.org/doc/district-council/wyre,30/12/2022,Resources,Corporate and Democratic Core,131A,VODAFONE LIMITED,19/12/2022,RS145599,12.00,0.00,Mobile Phone Monthly Charges,Mobile Devices
Wyre Council,http://opendatacommunities.org/doc/district-council/wyre,30/12/2022,Resources,Cultural and Related Services,132A,VODAFONE LIMITED,19/12/2022,RS145599,12.00,0.00,Monthly Charges,Mobile Devices
Wyre Council,http://opendatacommunities.org/doc/district-council/wyre,30/12/2022,Resources,Support Services,135B,VODAFONE LIMITED,19/12/2022,RS145599,180.00,0.00,Monthly Charges,Mobile Devices
Wyre Council,http://opendatacommunities.org/doc/district-council/wyre,30/12/2022,Resources,Support Services,135B,VODAFONE LIMITED,19/12/2022,RS145599,12.00,0.00,Monthly Charges,Mobile Devices
Wyre Council,http://opendatacommunities.org/doc/district-council/wyre,30/12/2022,Resources,Support Services,135B,VODAFONE LIMITED,19/12/2022,RS145599,56.00,0.00,Monthly Charges,Mobile Devices
Wyre Council,http://opendatacommunities.org/doc/district-council/wyre,30/12/2022,Resources,Support Services,135B,VODAFONE LIMITED,19/12/2022,RS145599,16.00,0.00,Monthly Charges,Mobile Devices
Wyre Council,http://opendatacommunities.org/doc/district-council/wyre,30/12/2022,People and Places,Highways,133B,Andrew Signs LTD,13/12/2022,PE145925,228.60,0.00,various signs on invoice INV-1285,Naming of Streets
Wyre Council,http://opendatacommunities.org/doc/district-council/wyre,30/12/2022,People and Places,Highways,133B,Andrew Signs LTD,05/12/2022,PE145741,517.20,0.00,various signs on INV 1334,Naming of Streets
Wyre Council,http://opendatacommunities.org/doc/district-council/wyre,30/12/2022,Finance,Current Assets,130B,,05/12/2022,WPST00086623,3395.00,0.00,NNDR Refund,NNDR Refunds
Wyre Council,http://opendatacommunities.org/doc/district-council/wyre,30/12/2022,Finance,Current Assets,130B,,13/12/2022,WPST00088927,3457.93,0.00,NNDR refunds,NNDR Refunds
Wyre Council,http://opendatacommunities.org/doc/district-council/wyre,30/12/2022,Finance,Current Assets,130B,,20/12/2022,WPST00089763,38046.25,0.00,NNDR refund,NNDR Refunds
Wyre Council,http://opendatacommunities.org/doc/district-council/wyre,30/12/2022,Finance,General Fund below the line,136A,DEPARTMENT FOR COMMUNITIES AND LOCAL GOVERNMENT,21/12/2022,WPST00089893,547000.00,0.00,R V B C GENERALLBRP0008,NNDR Tariff to Government
Wyre Council,http://opendatacommunities.org/doc/district-council/wyre,30/12/2022,Finance,Collection Fund Revenue Accts,138A,DEPARTMENT FOR COMMUNITIES AND LOCAL GOVERNMENT,21/12/2022,WPST00089889,866408.00,0.00,DLUHC - Business Rates Central Share 19/,NNDR Tariff to Government
Wyre Council,http://opendatacommunities.org/doc/district-council/wyre,30/12/2022,Resources,Support Services,135B,People Asset Management LTD,08/12/2022,RS145856,231.00,0.00,Monthly fee (Aug to March 22,Occupational Health Fees
Wyre Council,http://opendatacommunities.org/doc/district-council/wyre,30/12/2022,Resources,Support Services,135B,People Asset Management LTD,21/12/2022,RS145619,1037.00,0.00,EAP Annual Fee 1 Oct 2022 to 30 Sep 2023,Occupational Health Fees
Wyre Council,http://opendatacommunities.org/doc/district-council/wyre,30/12/2022,Resources,Support Services,135B,People Asset Management LTD,13/12/2022,RS145896,-923.00,0.00,Monthly OH charges Sept 22 credit againt 120414 RS144692,Occupational Health Fees
Wyre Council,http://opendatacommunities.org/doc/district-council/wyre,30/12/2022,Resources,Support Services,135B,People Asset Management LTD,13/12/2022,RS144692,493.45,0.00,monthly OH Charges Sept 22 offset via credit RS145896,Occupational Health Fees
Wyre Council,http://opendatacommunities.org/doc/district-council/wyre,30/12/2022,Resources,Support Services,135B,People Asset Management LTD,13/12/2022,RS144692,923.00,0.00,monthly OH Charges Sept 22 offset via credit RS145896,Occupational Health Fees
Wyre Council,http://opendatacommunities.org/doc/district-council/wyre,30/12/2022,Resources,Support Services,135B,People Asset Management LTD,02/12/2022,RS144964,618.75,0.00,Flu Jabs credit RS145630,Occupational Health Fees
Wyre Council,http://opendatacommunities.org/doc/district-council/wyre,30/12/2022,Resources,Support Services,135B,People Asset Management LTD,08/12/2022,RS145856,637.36,0.00,Monthly fee (Aug to March 22,Occupational Health Fees
Wyre Council,http://opendatacommunities.org/doc/district-council/wyre,30/12/2022,Finance,Central Services to the Public,131C,,01/12/2022,WPST00086225,1650.00,0.00,LANCASHIRE ENVIRONTWMAD 3173/45201,Other Contributions
Wyre Council,http://opendatacommunities.org/doc/district-council/wyre,30/12/2022,People and Places,Environmental Services,132B,DANFO (UK) LTD,08/12/2022,PE145846,21763.10,0.00,Public Conveniences - Maintenance and Cleaning 2022/23,Other Establishments
Wyre Council,http://opendatacommunities.org/doc/district-council/wyre,30/12/2022,People and Places,Parking Services,133F,Andrew Signs LTD,05/12/2022,PE145762,1032.80,0.00,Supplied 46x76mm x 1800mm grey posts and 1 box of stainless steel clips,"Paths, Roads and Car Park Mtnce Annual"
Wyre Council,http://opendatacommunities.org/doc/district-council/wyre,30/12/2022,People and Places,Parking Services,133F,Andrew Signs LTD,05/12/2022,PE145762,1032.80,0.00,Supplied 46x76mm x 1800mm grey posts and 1 box of stainless steel clips,"Paths, Roads and Car Park Mtnce Annual"
Wyre Council,http://opendatacommunities.org/doc/district-council/wyre,30/12/2022,People and Places,Parking Services,133F,Compass Minerals UK LTD,21/12/2022,PE146183,15.52,0.00,60 tons of thawrox 6 delivered to Copse Road depot FY7 6RP,"Paths, Roads and Car Park Mtnce Annual"
Wyre Council,http://opendatacommunities.org/doc/district-council/wyre,30/12/2022,People and Places,Parking Services,133F,Compass Minerals UK LTD,20/12/2022,PE146123,700.42,0.00,60 tons of thawrox 6 delivered to Copse Road depot FY7 6RP,"Paths, Roads and Car Park Mtnce Annual"
Wyre Council,http://opendatacommunities.org/doc/district-council/wyre,30/12/2022,People and Places,Parking Services,133F,Compass Minerals UK LTD,19/12/2022,PE146059,705.35,0.00,60 tons of thawrox 6 delivered to Copse Road depot FY7 6RP,"Paths, Roads and Car Park Mtnce Annual"
Wyre Council,http://opendatacommunities.org/doc/district-council/wyre,30/12/2022,People and Places,Parking Services,133F,Compass Minerals UK LTD,21/12/2022,PE146183,15.41,0.00,60 tons of thawrox 6 delivered to Copse Road depot FY7 6RP,"Paths, Roads and Car Park Mtnce Annual"
Wyre Council,http://opendatacommunities.org/doc/district-council/wyre,30/12/2022,People and Places,Parking Services,133F,Compass Minerals UK LTD,20/12/2022,PE146123,700.42,0.00,60 tons of thawrox 6 delivered to Copse Road depot FY7 6RP,"Paths, Roads and Car Park Mtnce Annual"
Wyre Council,http://opendatacommunities.org/doc/district-council/wyre,30/12/2022,People and Places,Parking Services,133F,Compass Minerals UK LTD,19/12/2022,PE146059,705.36,0.00,60 tons of thawrox 6 delivered to Copse Road depot FY7 6RP,"Paths, Roads and Car Park Mtnce Annual"
Wyre Council,http://opendatacommunities.org/doc/district-council/wyre,30/12/2022,People and Places,Parking Services,133F,A1 Streamline Road,07/12/2022,PE145804,650.00,0.00,"Car park lining works.Carry out agreed works as per your recent quotations, 14157 (Civic Centre), 14158 (Custom House Lane), 14159 (Thornton Little Theatre), 14160 (Wheatsheaf Way)","Paths, Roads and Car Park Mtnce Annual"
Wyre Council,http://opendatacommunities.org/doc/district-council/wyre,30/12/2022,People and Places,Parking Services,133F,A1 Streamline Road,07/12/2022,PE145820,650.00,0.00,"Car park lining works.Carry out agreed works as per your recent quotations, 14157 (Civic Centre), 14158 (Custom House Lane), 14159 (Thornton Little Theatre), 14160 (Wheatsheaf Way)","Paths, Roads and Car Park Mtnce Annual"
Wyre Council,http://opendatacommunities.org/doc/district-council/wyre,30/12/2022,People and Places,Parking Services,133F,A1 Streamline Road,07/12/2022,PE145819,650.00,0.00,"Car park lining works.Carry out agreed works as per your recent quotations, 14157 (Civic Centre), 14158 (Custom House Lane), 14159 (Thornton Little Theatre), 14160 (Wheatsheaf Way)","Paths, Roads and Car Park Mtnce Annual"
Wyre Council,http://opendatacommunities.org/doc/district-council/wyre,30/12/2022,People and Places,Parking Services,133F,A1 Streamline Road,07/12/2022,PE145818,705.00,0.00,"Car park lining works.Carry out agreed works as per your recent quotations, 14157 (Civic Centre), 14158 (Custom House Lane), 14159 (Thornton Little Theatre), 14160 (Wheatsheaf Way)","Paths, Roads and Car Park Mtnce Annual"
Wyre Council,http://opendatacommunities.org/doc/district-council/wyre,30/12/2022,Finance,Corporate and Democratic Core,131A,LANCASHIRE COUNTY COUNCIL,02/12/2022,WPST00086398,15131.44,0.00,LCC CO 6510035098LPF00101,Pension Increase Act Payments
Wyre Council,http://opendatacommunities.org/doc/district-council/wyre,30/12/2022,People and Places,Cultural and Related Services,132A,PPL PRS Ltd,05/12/2022,PE145718,416.64,0.00,PRS Marine Hall period ending 5/10/22,Performing Rights
Wyre Council,http://opendatacommunities.org/doc/district-council/wyre,30/12/2022,People and Places,Cultural and Related Services,132A,PPL PRS Ltd,05/12/2022,PE145746,1292.22,0.00,PRS Marine Hall - period ending 5/1/22,Performing Rights
Wyre Council,http://opendatacommunities.org/doc/district-council/wyre,30/12/2022,People and Places,Cultural and Related Services,132A,PPL PRS Ltd,05/12/2022,PE145750,23.12,0.00,PRS TLT 5/7/22,Performing Rights
Wyre Council,http://opendatacommunities.org/doc/district-council/wyre,30/12/2022,People and Places,Cultural and Related Services,132A,PPL PRS Ltd,05/12/2022,PE145749,84.06,0.00,PRS TLT 6/4/22,Performing Rights
Wyre Council,http://opendatacommunities.org/doc/district-council/wyre,30/12/2022,People and Places,Cultural and Related Services,132A,PPL PRS Ltd,15/12/2022,PE146012,392.84,0.00,PRS - Marine Hall  ending 5/10/22,Performing Rights
Wyre Council,http://opendatacommunities.org/doc/district-council/wyre,30/12/2022,People and Places,Support Services,135B,John Carney,02/12/2022,PE145691,300.00,0.00,"Civic Centre: cleaning out all land gulleys and down pipes, hopper heads all around, inside roofs to above",Planned Building Maintenance
Wyre Council,http://opendatacommunities.org/doc/district-council/wyre,30/12/2022,People and Places,Support Services,135B,John Carney,02/12/2022,PE145690,600.00,0.00,"Civic Centre: for starting at doctors surgery at front of civic buildings. Cleaning out all gutters, rain water pipes, land valleys, outlets and down pipes to every roof on site, including the flat roof outlets",Planned Building Maintenance
Wyre Council,http://opendatacommunities.org/doc/district-council/wyre,30/12/2022,People and Places,Cultural and Related Services,132A,John Carney,02/12/2022,PE145689,95.00,0.00,"Jean Stansfield Bowling Club: for cleaning out all gutters, outlets and down pipes to above",Planned Building Maintenance
Wyre Council,http://opendatacommunities.org/doc/district-council/wyre,30/12/2022,People and Places,Cultural and Related Services,132A,John Carney,02/12/2022,PE145687,120.00,0.00,"Sports Centre, Thornton: for cleaning out all accessible roof areas to above. Clearing out all drain pipes and outlets",Planned Building Maintenance
Wyre Council,http://opendatacommunities.org/doc/district-council/wyre,30/12/2022,People and Places,Cultural and Related Services,132A,RENTOKIL INITIAL UK LTD,14/12/2022,PE145941,20.13,0.00,thornton Little Theatre: Contract C/90302367  Service hygiene equipment 21/12/22 - 20/03/23,Planned Building Maintenance
Wyre Council,http://opendatacommunities.org/doc/district-council/wyre,30/12/2022,People and Places,Cultural and Related Services,132A,RENTOKIL INITIAL UK LTD,14/12/2022,PE145941,233.31,0.00,Marine Hall: Contract C/90302367  Service hygiene equipment 21/12/22 - 20/03/23,Planned Building Maintenance
Wyre Council,http://opendatacommunities.org/doc/district-council/wyre,30/12/2022,People and Places,Planning and Development Servs,132C,RENTOKIL INITIAL UK LTD,14/12/2022,PE145941,255.11,0.00,Fleetwood Market: Contract C/90302367  Service hygiene equipment 21/12/22 - 20/03/23,Planned Building Maintenance
Wyre Council,http://opendatacommunities.org/doc/district-council/wyre,30/12/2022,People and Places,Support Services,135B,RENTOKIL INITIAL UK LTD,14/12/2022,PE145941,669.19,0.00,75 Breck Rd: Contract C/90302367  Service hygiene equipment 21/12/22 - 20/03/23,Planned Building Maintenance
Wyre Council,http://opendatacommunities.org/doc/district-council/wyre,30/12/2022,People and Places,Planning and Development Servs,132C,RENTOKIL INITIAL UK LTD,14/12/2022,PE145941,229.28,0.00,Copse Rd Depot: Contract C/90302367  Service hygiene equipment 21/12/22 - 20/03/23,Planned Building Maintenance
Wyre Council,http://opendatacommunities.org/doc/district-council/wyre,30/12/2022,People and Places,Support Services,135B,GARRY CARR BUILDING SERVICES LTD,12/12/2022,PE145839,132.00,0.00,civic Centre: cleaning and Malgicide to air handling flat roof. Repair gutter,Planned Building Maintenance
Wyre Council,http://opendatacommunities.org/doc/district-council/wyre,30/12/2022,Finance,Central Services to the Public,131C,SANTANDER,09/12/2022,WPST00087347,817.90,0.00,SAN UK ACC RECEIVE,Plastic Cards Processing Fees
Wyre Council,http://opendatacommunities.org/doc/district-council/wyre,30/12/2022,People and Places,Support Services,135B,Wicksteed Leisure LTD,19/12/2022,PE146092,512.00,0.00,As per quotation WLLQ4934BS45 Swing Hangers c/w Oilite Bush and Shackle,Playground Equipment
Wyre Council,http://opendatacommunities.org/doc/district-council/wyre,30/12/2022,People and Places,Support Services,135B,Wicksteed Leisure LTD,19/12/2022,PE146092,43.52,0.00,Carriage,Playground Equipment
Wyre Council,http://opendatacommunities.org/doc/district-council/wyre,30/12/2022,Resources,Support Services,135B,The University Of Manchester,13/12/2022,RS145912,5250.00,0.00,George Briscoe - MSc Planning,Post Entry/Professional Training
Wyre Council,http://opendatacommunities.org/doc/district-council/wyre,30/12/2022,Resources,Central Services to the Public,131C,Royal Mail Group PLC,05/12/2022,RS145659,622.51,0.00,Preesall By-Election 18 August 2022  1048 postal votes postage.,Postage
Wyre Council,http://opendatacommunities.org/doc/district-council/wyre,30/12/2022,Resources,Central Services to the Public,131C,Royal Mail Group PLC,22/12/2022,RS146220,87.50,0.00,Licence Fee - Monthly Collection January 2023,Postage
Wyre Council,http://opendatacommunities.org/doc/district-council/wyre,30/12/2022,Resources,Housing General Fund,134A,Critiqom LTD,16/12/2022,RS146056,37.43,0.00,Benefit Notifications Nov22,Postage
Wyre Council,http://opendatacommunities.org/doc/district-council/wyre,30/12/2022,Resources,Housing General Fund,134A,Critiqom LTD,16/12/2022,RS146057,139.89,0.00,Benefit Notifications  Nov22,Postage
Wyre Council,http://opendatacommunities.org/doc/district-council/wyre,30/12/2022,Resources,Support Services,135B,Critiqom LTD,16/12/2022,RS146056,966.95,0.00,IQ post - CC Nov22,Postage
Wyre Council,http://opendatacommunities.org/doc/district-council/wyre,30/12/2022,Resources,Support Services,135B,Critiqom LTD,16/12/2022,RS146056,317.85,0.00,IQ Post - Planning Nov22,Postage
Wyre Council,http://opendatacommunities.org/doc/district-council/wyre,30/12/2022,Resources,Central Services to the Public,131C,Critiqom LTD,16/12/2022,RS146057,1793.94,0.00,Daily Bills Nov22,Postage
Wyre Council,http://opendatacommunities.org/doc/district-council/wyre,30/12/2022,Resources,Central Services to the Public,131C,Critiqom LTD,16/12/2022,RS146056,452.01,0.00,Daily Bills Nov22,Postage
Wyre Council,http://opendatacommunities.org/doc/district-council/wyre,30/12/2022,Resources,Central Services to the Public,131C,Critiqom LTD,16/12/2022,RS146056,302.18,0.00,IQ post - Electoral Nov22,Postage
Wyre Council,http://opendatacommunities.org/doc/district-council/wyre,30/12/2022,Resources,Support Services,135B,Critiqom LTD,16/12/2022,RS146056,166.48,0.00,IQ post - Off Serv Admin Nov22,Postage
Wyre Council,http://opendatacommunities.org/doc/district-council/wyre,30/12/2022,Resources,Support Services,135B,Critiqom LTD,19/12/2022,RS146087,40.00,0.00,Data Quality Infractions Nov 22,Postage
Wyre Council,http://opendatacommunities.org/doc/district-council/wyre,30/12/2022,Resources,Support Services,135B,Critiqom LTD,16/12/2022,RS146056,17.73,0.00,IQ post - Recovery Nov22,Postage
Wyre Council,http://opendatacommunities.org/doc/district-council/wyre,30/12/2022,Resources,Support Services,135B,Critiqom LTD,16/12/2022,RS146056,132.21,0.00,Ctax Reminders Nov22,Postage
Wyre Council,http://opendatacommunities.org/doc/district-council/wyre,30/12/2022,Resources,Support Services,135B,Critiqom LTD,16/12/2022,RS146056,3.19,0.00,NNDR Reminders Nov22,Postage
Wyre Council,http://opendatacommunities.org/doc/district-council/wyre,30/12/2022,Resources,Support Services,135B,Critiqom LTD,16/12/2022,RS146056,75.43,0.00,Ctax Summons Nov22,Postage
Wyre Council,http://opendatacommunities.org/doc/district-council/wyre,30/12/2022,Resources,Support Services,135B,Critiqom LTD,16/12/2022,RS146056,3.48,0.00,NNDR Summons Nov22,Postage
Wyre Council,http://opendatacommunities.org/doc/district-council/wyre,30/12/2022,Resources,Support Services,135B,Critiqom LTD,16/12/2022,RS146057,351.93,0.00,Council Tax Reminders  Nov22,Postage
Wyre Council,http://opendatacommunities.org/doc/district-council/wyre,30/12/2022,Resources,Support Services,135B,Critiqom LTD,16/12/2022,RS146057,19.80,0.00,NNDR Reminders Nov22,Postage
Wyre Council,http://opendatacommunities.org/doc/district-council/wyre,30/12/2022,Resources,Support Services,135B,Critiqom LTD,16/12/2022,RS146057,208.78,0.00,Council Tax Summons  Nov22,Postage
Wyre Council,http://opendatacommunities.org/doc/district-council/wyre,30/12/2022,Resources,Support Services,135B,Critiqom LTD,16/12/2022,RS146057,12.03,0.00,NNDR Summons Nov22,Postage
Wyre Council,http://opendatacommunities.org/doc/district-council/wyre,30/12/2022,Resources,Support Services,135B,Digital ID LTD,22/12/2022,RS146222,8.95,0.00,Carriage,Postage
Wyre Council,http://opendatacommunities.org/doc/district-council/wyre,30/12/2022,Finance,Housing General Fund,134A,,07/12/2022,WPST00087171,9182.57,0.00,HB Ukraine,Private Contractors
Wyre Council,http://opendatacommunities.org/doc/district-council/wyre,30/12/2022,Resources,Parking Services,133F,Lancashire County Council,09/12/2022,RS144754,-9431.77,0.00,Offsets invoice sent in error RS139168,Private Contractors
Wyre Council,http://opendatacommunities.org/doc/district-council/wyre,30/12/2022,People and Places,Public Transport,133G,Wyre Marine Services,20/12/2022,PE146093,8685.00,0.00,"Fleetwood - Knott End Ferry Service. Schedule of payments  12 April 2022             - 11 May 2022                        �,8685.00 12 May 2022             - 11 June 2022                       8,685.00 12 June 2022            - 11 July 2022",Private Contractors
Wyre Council,http://opendatacommunities.org/doc/district-council/wyre,30/12/2022,People and Places,Environmental Services,132B,M J Wilkinson,22/12/2022,PE146223,250.00,0.00,"Removal of abandoned caravan from Lancaster Road, Pilling",Private Contractors
Wyre Council,http://opendatacommunities.org/doc/district-council/wyre,30/12/2022,People and Places,Environmental Services,132B,Idverde Limited,13/12/2022,PE145070,12008.12,0.00,Wyre Highway Weed Control - Urban,Private Contractors
Wyre Council,http://opendatacommunities.org/doc/district-council/wyre,30/12/2022,People and Places,Environmental Services,132B,Idverde Limited,13/12/2022,PE145070,4002.71,0.00,Wyre Highway Weed Control - Rural,Private Contractors
Wyre Council,http://opendatacommunities.org/doc/district-council/wyre,30/12/2022,People and Places,Cultural and Related Services,132A,LPM Dance,19/12/2022,PE146061,2500.00,0.00,"Support the delivery of Dance Fusion and Dance for people with PArkinsons disease/long-term health conditions and disabilities to sustain this work for the next 3 months, to cover costs Sept/Oct - December 2022. Total cost - 2,500",Project Costs
Wyre Council,http://opendatacommunities.org/doc/district-council/wyre,30/12/2022,Resources,Environmental Services,132B,Visual Print and Design Ltd,22/12/2022,PE145016,3475.00,0.00,"59,500 Waste Leaflet 2022-2023",Promotions - General
Wyre Council,http://opendatacommunities.org/doc/district-council/wyre,30/12/2022,People and Places,Environmental Services,132B,Key Engineering & Hygiene Supplies LTD,16/12/2022,PE146051,57.12,0.00,"Supply and deliver as per quotation 16855 25/11/22  Delivery to Wyre Council, Copse Road Depot, Copse Road, Fleetwood, FY7 6RP.",Protective Clothing
Wyre Council,http://opendatacommunities.org/doc/district-council/wyre,30/12/2022,People and Places,Environmental Services,132B,Key Engineering & Hygiene Supplies LTD,16/12/2022,PE146051,178.00,0.00,"Supply and deliver as per quotation 16855 25/11/22  Delivery to Wyre Council, Copse Road Depot, Copse Road, Fleetwood, FY7 6RP.",Protective Clothing
Wyre Council,http://opendatacommunities.org/doc/district-council/wyre,30/12/2022,People and Places,Support Services,135B,Key Engineering & Hygiene Supplies LTD,16/12/2022,PE146051,178.00,0.00,"Supply and deliver as per quotation 16855 25/11/22  Delivery to Wyre Council, Copse Road Depot, Copse Road, Fleetwood, FY7 6RP.",Protective Clothing
Wyre Council,http://opendatacommunities.org/doc/district-council/wyre,30/12/2022,People and Places,Support Services,135B,Key Engineering & Hygiene Supplies LTD,16/12/2022,PE146051,57.11,0.00,"Supply and deliver as per quotation 16855 25/11/22  Delivery to Wyre Council, Copse Road Depot, Copse Road, Fleetwood, FY7 6RP.",Protective Clothing
Wyre Council,http://opendatacommunities.org/doc/district-council/wyre,30/12/2022,People and Places,Environmental Services,132B,Key Engineering & Hygiene Supplies LTD,14/12/2022,PE145990,845.50,0.00,"Supply and deliver 50 boxes of blue refuse sacks BL09OCI16.91 per 200Delivery to Wyre Council, Copse Road Depot, Copse Road, Fleetwood, FY7 6RP.","Provision of Bins, Boxes and Sacks"
Wyre Council,http://opendatacommunities.org/doc/district-council/wyre,30/12/2022,People and Places,Environmental Services,132B,Veolia ES (UK) LTD,20/12/2022,PE146120,4584.66,0.00,Bin delivery,"Provision of Bins, Boxes and Sacks"
Wyre Council,http://opendatacommunities.org/doc/district-council/wyre,30/12/2022,People and Places,Environmental Services,132B,Contenur UK Ltd,20/12/2022,PE146104,8860.32,0.00,"432 x 240ltr Anthracite Grey Body c/w 0801 Blue Lid, 2 standard wheels + axle, in Virgin polymer @ 20.51 per unit","Provision of Bins, Boxes and Sacks"
Wyre Council,http://opendatacommunities.org/doc/district-council/wyre,30/12/2022,People and Places,Environmental Services,132B,Contenur UK Ltd,20/12/2022,PE146104,8860.32,0.00,"432 x 240ltr Anthracite Grey Body c/w 0300 Grey Lid, 2 standard wheels & axle, in Virgin polymer @ 20.51 per unitPrices as per ESPO Contract Schedule 860ADDAnticipated delivery ASAP (can accept delivery any time, but please advise in advance if","Provision of Bins, Boxes and Sacks"
Wyre Council,http://opendatacommunities.org/doc/district-council/wyre,30/12/2022,Resources,Support Services,135B,Officestore UK,20/12/2022,RS146139,4273.44,0.00,12 x 1600x800 Single Upright Rectangular Desk WhiteBlack Code: OU9228 6 x 1600 Straight Upholstered Desktop Screen - Black Ref  DMS1600SBK  Code: OS979012 x Marlos Mesh Back Office Chair With Folding Arms - Black Ref CH0790BK Code: OS9866 8 x Club S,Purchase Furniture
Wyre Council,http://opendatacommunities.org/doc/district-council/wyre,30/12/2022,Resources,Support Services,135B,Thomson Reuters,05/12/2022,RS145094,10769.76,0.00,invoice 6801289613,Purchase of Publications
Wyre Council,http://opendatacommunities.org/doc/district-council/wyre,30/12/2022,People and Places,Support Services,135B,Andrew Signs LTD,05/12/2022,PE145741,260.00,0.00,various signs on INV 1334,Purchase of Tools or Equipment
Wyre Council,http://opendatacommunities.org/doc/district-council/wyre,30/12/2022,People and Places,Support Services,135B,Bates Office Services Ltd,16/12/2022,PE146049,117.09,0.00,CONNEKT GEAR 3M PWR EXT BLOCK 6 SKT,Purchase of Tools or Equipment
Wyre Council,http://opendatacommunities.org/doc/district-council/wyre,30/12/2022,People and Places,Support Services,135B,Bates Office Services Ltd,16/12/2022,PE146049,69.30,0.00,DLINE FLR CBL CVR HZRD C/W CONTRS YL/BLK,Purchase of Tools or Equipment
Wyre Council,http://opendatacommunities.org/doc/district-council/wyre,30/12/2022,Resources,Housing General Fund,134A,VODAFONE LIMITED,19/12/2022,RS145599,24.00,0.00,Monthly Charges,Purchase of Tools or Equipment
Wyre Council,http://opendatacommunities.org/doc/district-council/wyre,30/12/2022,People and Places,Cultural and Related Services,132A,POULTON DRAMA,12/12/2022,PE145874,3522.00,0.00,Refund of ticket sales - TLT Hindle Wakes,Refund of Ticket Sales to Ext Promoters
Wyre Council,http://opendatacommunities.org/doc/district-council/wyre,30/12/2022,People and Places,Cultural and Related Services,132A,THORNTON CLEVELEYS YOUTH THEATRE,21/12/2022,PE146212,8944.00,0.00,Refund of ticket sales - TLT 30/11/22 - 3/12/22,Refund of Ticket Sales to Ext Promoters
Wyre Council,http://opendatacommunities.org/doc/district-council/wyre,30/12/2022,People and Places,Cultural and Related Services,132A,Cou-Cou Theatre Productions CIC,15/12/2022,PE146010,5698.00,0.00,Refund of ticket sales - Matilda Jr - November 2022 Marine Hall,Refund of Ticket Sales to Ext Promoters
Wyre Council,http://opendatacommunities.org/doc/district-council/wyre,30/12/2022,Finance,Cultural and Related Services,132A,,20/12/2022,WPST00089680,25314.54,0.00,VEOLIA ES UK LIMIT1111100721 1111100,Refuse Collection
Wyre Council,http://opendatacommunities.org/doc/district-council/wyre,30/12/2022,People and Places,Planning and Development Servs,132C,Suez Recycling And Recovery UK LTD,05/12/2022,PE145767,1110.71,0.00,waste removal market suez,Refuse Collection
Wyre Council,http://opendatacommunities.org/doc/district-council/wyre,30/12/2022,People and Places,Planning and Development Servs,132C,Nilfisk Ltd,01/12/2022,PE145654,7248.60,0.00,Scrubber dryer,Refuse Collection
Wyre Council,http://opendatacommunities.org/doc/district-council/wyre,30/12/2022,People and Places,Environmental Services,132B,Veolia ES (UK) LTD,20/12/2022,PE146120,178535.32,0.00,Domestic Waste Management Collection Contract 2022/23,Refuse Collection Contract
Wyre Council,http://opendatacommunities.org/doc/district-council/wyre,30/12/2022,People and Places,Environmental Services,132B,Veolia ES (UK) LTD,20/12/2022,PE146120,1879.30,0.00,Pension pass through,Refuse Collection Contract
Wyre Council,http://opendatacommunities.org/doc/district-council/wyre,30/12/2022,People and Places,Public Transport,133G,Andrew Signs LTD,13/12/2022,PE145925,195.00,0.00,various signs on invoice INV-1285,Repairs to Non-WBC Buildings
Wyre Council,http://opendatacommunities.org/doc/district-council/wyre,30/12/2022,People and Places,Cultural and Related Services,132A,EAS Electrical Mechanical,14/12/2022,PE145951,48.00,0.00,Investigate fault on EM lights key at Rossall Point Observatory,Responsive Building Maintenance
Wyre Council,http://opendatacommunities.org/doc/district-council/wyre,30/12/2022,People and Places,Support Services,135B,EAS Electrical Mechanical,20/12/2022,PE146133,48.00,0.00,"Civic Centre: investigate fault to AHU, reviewed BMS and found fault to be linked to extract fan.  Unable to trace wiring within BMS due to lack of drawings/information.  Advised WBC and await further instructions",Responsive Building Maintenance
Wyre Council,http://opendatacommunities.org/doc/district-council/wyre,30/12/2022,People and Places,Support Services,135B,EAS Electrical Mechanical,14/12/2022,PE145989,98.34,0.00,"rectify fault to timer, which operates wall light",Responsive Building Maintenance
Wyre Council,http://opendatacommunities.org/doc/district-council/wyre,30/12/2022,People and Places,Support Services,135B,EAS Electrical Mechanical,14/12/2022,PE145950,80.05,0.00,Installed double socket at Civic,Responsive Building Maintenance
Wyre Council,http://opendatacommunities.org/doc/district-council/wyre,30/12/2022,People and Places,Support Services,135B,EAS Electrical Mechanical,14/12/2022,PE145949,107.42,0.00,Installed power for defib at Civic,Responsive Building Maintenance
Wyre Council,http://opendatacommunities.org/doc/district-council/wyre,30/12/2022,People and Places,Support Services,135B,EAS Electrical Mechanical,14/12/2022,PE145984,120.61,0.00,Civic Centre: adjust discharge pipework on water heater,Responsive Building Maintenance
Wyre Council,http://opendatacommunities.org/doc/district-council/wyre,30/12/2022,People and Places,Planning and Development Servs,132C,EAS Electrical Mechanical,12/12/2022,PE145879,48.00,0.00,Fleetwood Market: investigated stalls tripping and found this to be down to lamps being used within light fittings which were the wrong type.  Advised correct lamps to use and separate order to be raised,Responsive Building Maintenance
Wyre Council,http://opendatacommunities.org/doc/district-council/wyre,30/12/2022,People and Places,Planning and Development Servs,132C,EAS Electrical Mechanical,09/12/2022,PE145862,24.00,0.00,Fleetwood Market: repaired roller shutter key switch as required,Responsive Building Maintenance
Wyre Council,http://opendatacommunities.org/doc/district-council/wyre,30/12/2022,People and Places,Cultural and Related Services,132A,EAS Electrical Mechanical,14/12/2022,PE145986,100.99,0.00,Advised on how shower blocks and building is wired up and replace battery in smoke detctor at kite club,Responsive Building Maintenance
Wyre Council,http://opendatacommunities.org/doc/district-council/wyre,30/12/2022,People and Places,Cultural and Related Services,132A,EAS Electrical Mechanical,20/12/2022,PE146130,77.83,0.00,"Jean Stansfield Park bowling club: investigate tap on kitchen tap in mess room, isolate, tighten loose tap and replace faulty tap revivers and test",Responsive Building Maintenance
Wyre Council,http://opendatacommunities.org/doc/district-council/wyre,30/12/2022,People and Places,Environmental Services,132B,EAS Electrical Mechanical,20/12/2022,PE146132,294.54,0.00,"Chatsworth Depot: investigate faulty heater, isolate power and replace with new and test. Isolate power and replace faulty time clock and test. Set times as staff required. Investigate heater, adjust max temp outlet",Responsive Building Maintenance
Wyre Council,http://opendatacommunities.org/doc/district-council/wyre,30/12/2022,People and Places,Planning and Development Servs,132C,EAS Electrical Mechanical,20/12/2022,PE146131,197.24,0.00,"Fleetwood Market: isolate and drain down unvented cylinder, replace immersion, fill back up and test",Responsive Building Maintenance
Wyre Council,http://opendatacommunities.org/doc/district-council/wyre,30/12/2022,People and Places,Environmental Services,132B,EAS Electrical Mechanical,14/12/2022,PE145987,48.00,0.00,Investigated problem with the wall heater in brew room at Fleetwood Market,Responsive Building Maintenance
Wyre Council,http://opendatacommunities.org/doc/district-council/wyre,30/12/2022,People and Places,Cultural and Related Services,132A,EAS Electrical Mechanical,20/12/2022,PE146129,48.00,0.00,Marine Hall: collect and drop off x 2 space heaters,Responsive Building Maintenance
Wyre Council,http://opendatacommunities.org/doc/district-council/wyre,30/12/2022,People and Places,Cultural and Related Services,132A,EAS Electrical Mechanical,20/12/2022,PE146129,184.80,0.00,Marine Hall : hire 2 x space heaters 16/11 to 30/11 - hire continues,Responsive Building Maintenance
Wyre Council,http://opendatacommunities.org/doc/district-council/wyre,30/12/2022,People and Places,Cultural and Related Services,132A,EAS Electrical Mechanical,02/12/2022,PE145693,79.78,0.00,"Marine Hall: investigate loose socket, replace damaged scew with new and replace socket back box bracket with  new. If problem continues new metal back box required",Responsive Building Maintenance
Wyre Council,http://opendatacommunities.org/doc/district-council/wyre,30/12/2022,People and Places,Cultural and Related Services,132A,EAS Electrical Mechanical,16/12/2022,PE146046,24.00,0.00,"Thornton Little Theatre: reviewed o/s faults with Tony which relate to RCD protection.  Explained that these are not  requirement to be cleared, only advisory.  Tony to discuss with WBC and advise if they are to be done.",Responsive Building Maintenance
Wyre Council,http://opendatacommunities.org/doc/district-council/wyre,30/12/2022,People and Places,Planning and Development Servs,132C,EAS Electrical Mechanical,14/12/2022,PE145988,173.20,0.00,Please replace broken dispensing tap to zip hyco at copse road,Responsive Building Maintenance
Wyre Council,http://opendatacommunities.org/doc/district-council/wyre,30/12/2022,People and Places,Planning and Development Servs,132C,EAS Electrical Mechanical,19/12/2022,PE146067,226.06,0.00,Replaced vaporproofs and took down flourescent light at copse road depot,Responsive Building Maintenance
Wyre Council,http://opendatacommunities.org/doc/district-council/wyre,30/12/2022,People and Places,Support Services,135B,John Carney,05/12/2022,PE145711,125.00,0.00,Carrying out minor repairs to roof over room 104 to stop water ingress,Responsive Building Maintenance
Wyre Council,http://opendatacommunities.org/doc/district-council/wyre,30/12/2022,People and Places,Cultural and Related Services,132A,John Carney,20/12/2022,PE146128,80.00,0.00,Mount Cottages: carrying out minor slate repairs,Responsive Building Maintenance
Wyre Council,http://opendatacommunities.org/doc/district-council/wyre,30/12/2022,People and Places,Environmental Services,132B,John Carney,02/12/2022,PE145688,120.00,0.00,"Preesall Cemetery: for carrying out slate repairs to both sides of the roof, replacing missing slates and re-fixing slipped slates",Responsive Building Maintenance
Wyre Council,http://opendatacommunities.org/doc/district-council/wyre,30/12/2022,People and Places,Cultural and Related Services,132A,John Carney,02/12/2022,PE145686,2400.00,0.00,Marine Hall: Fora ll work carried out to main roof over stage area.  Plywood been vandalized so job needed total replacement all around to keep water tight plus stopping vandals entering the hall.  All plywood coated to protect,Responsive Building Maintenance
Wyre Council,http://opendatacommunities.org/doc/district-council/wyre,30/12/2022,People and Places,Planning and Development Servs,132C,GARRY CARR BUILDING SERVICES LTD,12/12/2022,PE145840,25.00,0.00,Fleetwood Market: remove loose decorative glass to external lantern,Responsive Building Maintenance
Wyre Council,http://opendatacommunities.org/doc/district-council/wyre,30/12/2022,People and Places,Central Services to the Public,131C,GARRY CARR BUILDING SERVICES LTD,12/12/2022,PE145838,169.00,0.00,Teanlowe 60+ Community Centre:clean gutters and troughs. Re-fit large section of box gutters. Supply and fir 2 no bricks missing at gutter level,Responsive Building Maintenance
Wyre Council,http://opendatacommunities.org/doc/district-council/wyre,30/12/2022,People and Places,Cultural and Related Services,132A,EVOLUTION CONSTRUCTION GROUP LTD,21/12/2022,PE146186,88.01,0.00,1 xnew lock and keys required for cleaners cupboard (current key snapped). Investigate and rectify gapping which has appeared towards the fron of the stage,Responsive Building Maintenance
Wyre Council,http://opendatacommunities.org/doc/district-council/wyre,30/12/2022,People and Places,Cultural and Related Services,132A,EVOLUTION CONSTRUCTION GROUP LTD,21/12/2022,PE146199,24.55,0.00,works to resecure retaining bar to gas bottles - bar cellar,Responsive Building Maintenance
Wyre Council,http://opendatacommunities.org/doc/district-council/wyre,30/12/2022,People and Places,Cultural and Related Services,132A,EVOLUTION CONSTRUCTION GROUP LTD,21/12/2022,PE146197,141.81,0.00,"kick plates, conf of verbal instructon to Alistair.  Supply and fit kick plates to exterior of double doors to outdoor swimming store facing sea front inc for s steel screws. To prevent further rot to doors",Responsive Building Maintenance
Wyre Council,http://opendatacommunities.org/doc/district-council/wyre,30/12/2022,People and Places,Cultural and Related Services,132A,EVOLUTION CONSTRUCTION GROUP LTD,21/12/2022,PE146187,49.10,0.00,Investigate and rectify fault to strap as discussed with Alistair,Responsive Building Maintenance
Wyre Council,http://opendatacommunities.org/doc/district-council/wyre,30/12/2022,People and Places,Cultural and Related Services,132A,EVOLUTION CONSTRUCTION GROUP LTD,21/12/2022,PE146192,55.71,0.00,"change keys to Sids shower block, conf of verbal instruction, change locks to shower block closest to beach wheelchair (Sids showers) supply 4 keys. Works required to prevent inauthorised access",Responsive Building Maintenance
Wyre Council,http://opendatacommunities.org/doc/district-council/wyre,30/12/2022,People and Places,Cultural and Related Services,132A,EVOLUTION CONSTRUCTION GROUP LTD,08/12/2022,PE140959,259.53,0.00,Mount Pavilion: investigate and rectify fault to the doors,Responsive Building Maintenance
Wyre Council,http://opendatacommunities.org/doc/district-council/wyre,30/12/2022,People and Places,Cultural and Related Services,132A,EVOLUTION CONSTRUCTION GROUP LTD,21/12/2022,PE146190,79.66,0.00,attend sire and repair lock to the gardener`s brew room before 3pm -. unable to lock/make secure,Responsive Building Maintenance
Wyre Council,http://opendatacommunities.org/doc/district-council/wyre,30/12/2022,People and Places,Cultural and Related Services,132A,EVOLUTION CONSTRUCTION GROUP LTD,21/12/2022,PE146201,36.83,0.00,supply and fit new lock on the cleaning cupboard,Responsive Building Maintenance
Wyre Council,http://opendatacommunities.org/doc/district-council/wyre,30/12/2022,People and Places,Cultural and Related Services,132A,EVOLUTION CONSTRUCTION GROUP LTD,21/12/2022,PE146204,36.83,0.00,"pocket screens to auto doors - H and S, conf of verbal instruction to Alistair. Construct/install 3 no, set of pocket screens using 5mm perspex as agreed with Julian on site today. Screens to be provided as a temporary measure to ensure doors are complian",Responsive Building Maintenance
Wyre Council,http://opendatacommunities.org/doc/district-council/wyre,30/12/2022,People and Places,Cultural and Related Services,132A,EVOLUTION CONSTRUCTION GROUP LTD,21/12/2022,PE146203,110.48,0.00,Repair rotten timbers to bottom of door to the Wyre Lounge whilst on site 1st Sept as requested/reported by Helen B,Responsive Building Maintenance
Wyre Council,http://opendatacommunities.org/doc/district-council/wyre,30/12/2022,People and Places,Cultural and Related Services,132A,EVOLUTION CONSTRUCTION GROUP LTD,21/12/2022,PE146202,110.48,0.00,rectify fault to bottom lock main front door,Responsive Building Maintenance
Wyre Council,http://opendatacommunities.org/doc/district-council/wyre,30/12/2022,People and Places,Support Services,135B,EVOLUTION CONSTRUCTION GROUP LTD,21/12/2022,PE146200,73.65,0.00,Re-secure toilet  to floor in 1st cubicle. Caretakers have tried to resecure but screws are just turning in their holes,Responsive Building Maintenance
Wyre Council,http://opendatacommunities.org/doc/district-council/wyre,30/12/2022,People and Places,Support Services,135B,EVOLUTION CONSTRUCTION GROUP LTD,21/12/2022,PE146196,64.07,0.00,"make repairs to the following: 1 x door and lock to archive store have been vandalised, 1 x beading to changing room windows has been pulled away",Responsive Building Maintenance
Wyre Council,http://opendatacommunities.org/doc/district-council/wyre,30/12/2022,People and Places,Support Services,135B,EVOLUTION CONSTRUCTION GROUP LTD,21/12/2022,PE146193,1050.01,0.00,replace all damaged ply as per photos sent under separate cover,Responsive Building Maintenance
Wyre Council,http://opendatacommunities.org/doc/district-council/wyre,30/12/2022,People and Places,Support Services,135B,EVOLUTION CONSTRUCTION GROUP LTD,21/12/2022,PE146191,184.13,0.00,fit dorgard to room 141. dorgard is currently in caretakers office,Responsive Building Maintenance
Wyre Council,http://opendatacommunities.org/doc/district-council/wyre,30/12/2022,People and Places,Support Services,135B,EVOLUTION CONSTRUCTION GROUP LTD,21/12/2022,PE146189,109.95,0.00,"Window repair room 148: conf of emailed instructions to Dave S - please re-glaze the wind up top window in room 148, glass is broken and pane loose and ready to fall out",Responsive Building Maintenance
Wyre Council,http://opendatacommunities.org/doc/district-council/wyre,30/12/2022,People and Places,Planning and Development Servs,132C,EVOLUTION CONSTRUCTION GROUP LTD,21/12/2022,PE146184,204.07,0.00,Rake out all loose grout to gents slab urinals clean down with bleach and re-grout all joints with epoxy resin grout. Masking tape to prevent spread of grout to tiling,Responsive Building Maintenance
Wyre Council,http://opendatacommunities.org/doc/district-council/wyre,30/12/2022,People and Places,Planning and Development Servs,132C,EVOLUTION CONSTRUCTION GROUP LTD,21/12/2022,PE146195,73.65,0.00,"lock, conf of verbal instruction. Replace damaged lock to unit 306 to be carried out whilst on sire 15 Aug",Responsive Building Maintenance
Wyre Council,http://opendatacommunities.org/doc/district-council/wyre,30/12/2022,People and Places,Planning and Development Servs,132C,EVOLUTION CONSTRUCTION GROUP LTD,21/12/2022,PE146194,122.75,0.00,replace missing tiles to unit 168 which were removed during a shutter replacement. There are a stock of tiles at the market which should be enough,Responsive Building Maintenance
Wyre Council,http://opendatacommunities.org/doc/district-council/wyre,30/12/2022,People and Places,Planning and Development Servs,132C,EVOLUTION CONSTRUCTION GROUP LTD,21/12/2022,PE146198,229.93,0.00,Follosing break in 15th August please carry out full re-glazong of broken dg units in toughened glass and carry out repairs to damaged plastic window frames and beading etc,Responsive Building Maintenance
Wyre Council,http://opendatacommunities.org/doc/district-council/wyre,30/12/2022,Resources,Housing General Fund,134A,Carter Property Ltd,06/12/2022,RS145776,3250.00,0.00,REDACT,Rough Sleeper Project/NSNO
Wyre Council,http://opendatacommunities.org/doc/district-council/wyre,30/12/2022,Resources,Housing General Fund,134A,Carter Property Ltd,14/12/2022,RS145938,19500.00,0.00,REDACT,Rough Sleeper Project/NSNO
Wyre Council,http://opendatacommunities.org/doc/district-council/wyre,30/12/2022,Resources,Support Services,135B,Phoenix Software LTD,07/12/2022,RS142587,5572.80,0.00,Matches cr RS142689: Windows server standard core all languages,Software Maintenance
Wyre Council,http://opendatacommunities.org/doc/district-council/wyre,30/12/2022,Resources,Support Services,135B,Phoenix Software LTD,09/12/2022,RS145778,13608.00,0.00,SQL Server Standard Core All Language Subscription 2 Core - Licence duplicate bill see credit RS145869,Software Maintenance
Wyre Council,http://opendatacommunities.org/doc/district-council/wyre,30/12/2022,Resources,Support Services,135B,Phoenix Software LTD,09/12/2022,RS145869,-13608.00,0.00,SQL Server Standard Core All Language Subscription 2 Core - Licence duplicate bill see invoice  RS145778,Software Maintenance
Wyre Council,http://opendatacommunities.org/doc/district-council/wyre,30/12/2022,Resources,Support Services,135B,Crown Computing LTD,14/12/2022,RS145150,975.00,0.00,May 2021 - monthly service charge,Software Maintenance
Wyre Council,http://opendatacommunities.org/doc/district-council/wyre,30/12/2022,Resources,Support Services,135B,Crown Computing LTD,08/12/2022,RS145845,975.00,0.00,Crown monthly fee April 22 to March 23,Software Maintenance
Wyre Council,http://opendatacommunities.org/doc/district-council/wyre,30/12/2022,Resources,Planning and Development Servs,132C,THE WASHINGTON GROUP (NORTH WEST) CIC,02/12/2022,RS145681,1000.00,0.00,Wyre`s commitment to IWD Festival 4 March 2023,Special Events
Wyre Council,http://opendatacommunities.org/doc/district-council/wyre,30/12/2022,People and Places,Cultural and Related Services,132A,GARRY CARR BUILDING SERVICES LTD,21/12/2022,PE145694,100.00,0.00,Marsh Mill - turning of sails visits 27/11/22,Special Events
Wyre Council,http://opendatacommunities.org/doc/district-council/wyre,30/12/2022,People and Places,Support Services,135B,J A Jones & Sons,05/12/2022,PE145744,2997.50,0.00,"30/09/2022 Quotation (Daniel Kings for J A Jones & Sons) 6 x Quercus robur  100L 14-16cm 2,370.001 x Quercus robur fastigiata AP 450-500cm fthd 425.0020 x Stakes 5?6? 3.50 (70)10 xCrossbar 1.50 (10.50)10 x medium rubber block 1.50",Special Maintenance - Trees
Wyre Council,http://opendatacommunities.org/doc/district-council/wyre,30/12/2022,People and Places,Support Services,135B,Dr Tree Surgeons,15/12/2022,PE146032,930.00,0.00,"Quotation 644 (Thornton Jobs) Side of Huggables unit, Holly Road &#8208; x1 semi mature norway maplegrowing on slope and leaning towards unit &#8208; remove large limb withcavity and exudations.180.00? Outside 23 Bentley Green &#8208; remove",Special Maintenance - Trees
Wyre Council,http://opendatacommunities.org/doc/district-council/wyre,30/12/2022,People and Places,Support Services,135B,Dr Tree Surgeons,15/12/2022,PE146038,930.00,0.00,Quotation 644 ? Tarnway open space side of 8 Tuxbury Close &#8208; x1 alder crown raiseto 4m and lateral crown reduc on required. X1 Willow &#8208;removedeadwood and reduce crown profile back from property to addressassymetry. Other willow &#820,Special Maintenance - Trees
Wyre Council,http://opendatacommunities.org/doc/district-council/wyre,30/12/2022,People and Places,Support Services,135B,Dr Tree Surgeons,15/12/2022,PE146037,380.00,0.00,"Quotation 642 (Fleetwood)Non highways jobs x2 part of quote 642: ? Memorial Park behind 19 Rowtree Avenue  &#8208; x1 Alder clad withRussian Vine , Highest fork displaying poor union, remove end weightof lesser stem, russian ivy, deadwood and",Special Maintenance - Trees
Wyre Council,http://opendatacommunities.org/doc/district-council/wyre,30/12/2022,People and Places,Support Services,135B,Dr Tree Surgeons,15/12/2022,PE146036,750.00,0.00,"Quote Number: 660Quote Ref: Civic Centre GroundsCivic Centre Grounds, Gardens by rear door 3 cankered Maplesrequire removing and resul ng stumps grinding out750.00 Total Net Amount: 750.00VAT @ 20%: 150.00Quote Total: 900.00",Special Maintenance - Trees
Wyre Council,http://opendatacommunities.org/doc/district-council/wyre,30/12/2022,People and Places,Support Services,135B,Dr Tree Surgeons,15/12/2022,PE146035,480.00,0.00,"Quote Number: 661Trim back tree from Gable end of property seven Ivy on approximately30 trees remove Deadwood from Maple trim back Willow from cornerand seven Ivy, Deadwood Ash tree480.00Total Net Amount: 480.00VAT @ 20%: 96.00Quote",Special Maintenance - Trees
Wyre Council,http://opendatacommunities.org/doc/district-council/wyre,30/12/2022,People and Places,Support Services,135B,Dr Tree Surgeons,15/12/2022,PE146034,380.00,0.00,Quote Number: 662behind 15 Furlong Lane &#8208; x1 dead beach &#8208; remove to ground level andnature stack arisings. Some encroachment over shed / garage &#8208;remove lower laterals of adjacent tree to alleviate this.380.00Total Net Amoun,Special Maintenance - Trees
Wyre Council,http://opendatacommunities.org/doc/district-council/wyre,30/12/2022,People and Places,Support Services,135B,Dr Tree Surgeons,13/12/2022,PE145927,980.00,0.00,Quote Number: 659  Side of thatched pub x4 sycamores encroachingover roof and towards terrace ? Raise and reduce back as necessary.  St Chads church PLF &#8208; x1 mature sycamore tree with assymetric crown mostly up and over roof of health shop at Market,Special Maintenance - Trees
Wyre Council,http://opendatacommunities.org/doc/district-council/wyre,30/12/2022,People and Places,Support Services,135B,Dr Tree Surgeons,20/12/2022,PE146138,2170.00,0.00,"Quote Number: 628 , Quote Date: 21st Sep `22   Quote Ref: Stannah Visitor centre & carpark  Perform all tree works as per descriptions and items on Quotation 628 - Chiefly ash dieback and other priority  related tree work.",Special Maintenance - Trees
Wyre Council,http://opendatacommunities.org/doc/district-council/wyre,30/12/2022,People and Places,Support Services,135B,Dr Tree Surgeons,01/12/2022,PE145649,350.00,0.00,Quote Number: 666Quote Ref: Side of Oaklands Hackensall RdTo Crown li  and  p back trees from garage and drive. 350.00 Total Net Amount: 350.00VAT @ 20%: 70.00Quote Total: 420.00,Special Maintenance - Trees
Wyre Council,http://opendatacommunities.org/doc/district-council/wyre,30/12/2022,People and Places,Support Services,135B,Dr Tree Surgeons,01/12/2022,PE145647,650.00,0.00,"Quotation Reference - Preesall Jobs  ? Preesall Playing Field, Preesall ? rear of 26 Beech Drive &#8208; x1 early mature sycamore located in council land but in very close proximity to garage with large por on of crown encroaching into property&#8208; pol",Special Maintenance - Trees
Wyre Council,http://opendatacommunities.org/doc/district-council/wyre,30/12/2022,People and Places,Support Services,135B,Dr Tree Surgeons,07/12/2022,PE145842,680.00,0.00,Quote Number: 668Quote Ref: Dunlin close / Mallard CloseSide of 5 Dunlin Close &#8208; council woodland encroaching onto dwelling.6 Mallard Close &#8208; Encroaching vegeta on from young woodland alongside rear garden boundary .680.00,Special Maintenance - Trees
Wyre Council,http://opendatacommunities.org/doc/district-council/wyre,30/12/2022,People and Places,Support Services,135B,Dr Tree Surgeons,07/12/2022,PE145843,1050.00,0.00,"Quote Number: 649 Quote Ref: Caldervale  The dismantling of one dangerous Beech tree. The dead wooding of one Oak & Beech as work request. Including Cherry picker.  Total Net Amount: 1,050.00 VAT @ 20%: 210.00 Quote Total: 1,260.00",Special Maintenance - Trees
Wyre Council,http://opendatacommunities.org/doc/district-council/wyre,30/12/2022,People and Places,Support Services,135B,HMA Tree Care,20/12/2022,PE146127,400.00,0.00,"Date Sent: 13/12/2022 Account No: 101Quote No: 118Site Address poulton cemetery , Garstang road east , poulton , fy68jhT1 PoplarDismantle and removal of poplar stem down to 3m habitat pole.All arisings to be removed off site.Total",Special Maintenance - Trees
Wyre Council,http://opendatacommunities.org/doc/district-council/wyre,30/12/2022,People and Places,Support Services,135B,HMA Tree Care,16/12/2022,PE146054,950.00,0.00,"Quote No: 80 08/11/22 - Poulton cemetery , Garstang road east , poulton , fy68jhG1 Various Crown Lift to provide 4 metres clearance from ground level plus deadwood 200.00T1 Sycamore Fell to ground level stack all arisings on site including stump 3",Special Maintenance - Trees
Wyre Council,http://opendatacommunities.org/doc/district-council/wyre,30/12/2022,People and Places,Support Services,135B,HMA Tree Care,16/12/2022,PE146055,1200.00,0.00,"Quotation 79 08/11/22 - Site Address Wyre estuary country park , river road , Thornton , Lancashire , fy55lrG1 Ash Crown lift and deadwood and selective felling 400.00T1 Ash Fell to ground level stack wood on site in manageable sections and remov",Special Maintenance - Trees
Wyre Council,http://opendatacommunities.org/doc/district-council/wyre,30/12/2022,People and Places,Support Services,135B,HMA Tree Care,13/12/2022,PE145935,850.00,0.00,"Quote No: 115 07/12/22Site Address poulton cemetery , Garstang road east , poulton , fy68jhT1 Poplar complete dismantle and removal to hedge height and remain as 3 metre habitat poledue to major cavity located in the main stem. All arisings remo",Special Maintenance - Trees
Wyre Council,http://opendatacommunities.org/doc/district-council/wyre,30/12/2022,People and Places,Support Services,135B,Lyreco UK LTD,14/12/2022,PE145999,108.00,0.00,"Supply 4 boxes of Lyreco white paper, code 157796 (5 reams per box) @ price quoted 5.40 per ream Delivery to Wyre Council, Copse Road Depot, Copse Road, Fleetwood, Lancashire, FY7 6RP.",Stationery
Wyre Council,http://opendatacommunities.org/doc/district-council/wyre,30/12/2022,Resources,Support Services,135B,Lyreco UK LTD,07/12/2022,RS145783,116.50,0.00,MultiCopy Zero Carbon A3 white 80gsm @ 4.85 per ream,Stationery
Wyre Council,http://opendatacommunities.org/doc/district-council/wyre,30/12/2022,Resources,Support Services,135B,Lyreco UK LTD,09/12/2022,RS145264,472.00,0.00,A4 Copier Paper,Stationery
Wyre Council,http://opendatacommunities.org/doc/district-council/wyre,30/12/2022,People and Places,Support Services,135B,Bates Office Services Ltd,02/12/2022,PE145679,1.80,0.00,Initiative Glue Stick Large 40gm,Stationery
Wyre Council,http://opendatacommunities.org/doc/district-council/wyre,30/12/2022,People and Places,Support Services,135B,Bates Office Services Ltd,02/12/2022,PE145679,10.38,0.00,REXEL METEOR STAPLER HSTRIP BLK 2100019,Stationery
Wyre Council,http://opendatacommunities.org/doc/district-council/wyre,30/12/2022,People and Places,Support Services,135B,Bates Office Services Ltd,02/12/2022,PE145679,5.86,0.00,Q CONNECT HIGHLIGHTERS ASSORTED PK6,Stationery
Wyre Council,http://opendatacommunities.org/doc/district-council/wyre,30/12/2022,People and Places,Support Services,135B,Bates Office Services Ltd,02/12/2022,PE145679,152.45,0.00,FELLOWES R-KIVE STORAGE BOX 01810,Stationery
Wyre Council,http://opendatacommunities.org/doc/district-council/wyre,30/12/2022,People and Places,Support Services,135B,Bates Office Services Ltd,02/12/2022,PE145679,17.66,0.00,QCONNECT C5 100GSM WDW P/SEAL WHT PK500,Stationery
Wyre Council,http://opendatacommunities.org/doc/district-council/wyre,30/12/2022,People and Places,Support Services,135B,Bates Office Services Ltd,02/12/2022,PE145679,21.73,0.00,3M POSTIT NOTE 76X127MM YELLOW 655 PK12,Stationery
Wyre Council,http://opendatacommunities.org/doc/district-council/wyre,30/12/2022,People and Places,Support Services,135B,Bates Office Services Ltd,02/12/2022,PE145679,8.32,0.00,STAEDTLER LUMOCOLOUR PERM MED BLACK PK10,Stationery
Wyre Council,http://opendatacommunities.org/doc/district-council/wyre,30/12/2022,People and Places,Support Services,135B,Bates Office Services Ltd,02/12/2022,PE145679,5.70,0.00,PUKKA RULED METALLIC JOTTA PAD A5 PK3,Stationery
Wyre Council,http://opendatacommunities.org/doc/district-council/wyre,30/12/2022,People and Places,Support Services,135B,Bates Office Services Ltd,02/12/2022,PE145679,9.06,0.00,PUKKA JOTTA METALLIC A4 WRIT PAD 80G,Stationery
Wyre Council,http://opendatacommunities.org/doc/district-council/wyre,30/12/2022,People and Places,Support Services,135B,Bates Office Services Ltd,02/12/2022,PE145679,0.90,0.00,A4 CLEAR PUNCHED POCKETS PK100,Stationery
Wyre Council,http://opendatacommunities.org/doc/district-council/wyre,30/12/2022,Resources,Support Services,135B,Bates Office Services Ltd,06/12/2022,RS145698,7.62,0.00,Initiative Env C5 SSeal 90g Wht 500s,Stationery
Wyre Council,http://opendatacommunities.org/doc/district-council/wyre,30/12/2022,Resources,Support Services,135B,Bates Office Services Ltd,06/12/2022,RS145698,11.82,0.00,PENTEL ENERGEL XM RETRCT PEN BLACK PK12,Stationery
Wyre Council,http://opendatacommunities.org/doc/district-council/wyre,30/12/2022,Resources,Housing General Fund,134A,Bates Office Services Ltd,06/12/2022,RS145698,5.99,0.00,Desk Diary DPP A4 Black 2023 - KFA41BL23,Stationery
Wyre Council,http://opendatacommunities.org/doc/district-council/wyre,30/12/2022,Resources,Support Services,135B,Bates Office Services Ltd,21/12/2022,RS146181,38.00,0.00,ENERGIZER INDL BATTERY SIZE C /LR14 PK12,Stationery
Wyre Council,http://opendatacommunities.org/doc/district-council/wyre,30/12/2022,People and Places,Current Assets,130B,Standard Fuel Oils,16/12/2022,PE146030,42508.71,0.00,"Confirmation order for 35001 litres of White diesel @ 1.2145 Delivered 12/12/22 Delivery to Wyre Council, Copse Road Depot, Copse Road, Fleetwood, FY7 6RP.",Stock - Copse Road Fuel
Wyre Council,http://opendatacommunities.org/doc/district-council/wyre,30/12/2022,Resources,Current Assets,130B,Whistl Uk Limited,20/12/2022,RS146111,371.68,0.00,Annual postage charges 01/04/2022 - 31/03/2022,Stores Purchases
Wyre Council,http://opendatacommunities.org/doc/district-council/wyre,30/12/2022,Resources,Current Assets,130B,Whistl Uk Limited,20/12/2022,RS146111,3.40,0.00,Annual postage charges 01/04/2022 - 31/03/2022,Stores Purchases
Wyre Council,http://opendatacommunities.org/doc/district-council/wyre,30/12/2022,Resources,Current Assets,130B,Whistl Uk Limited,14/12/2022,RS145936,140.42,0.00,Annual postage charges 01/04/2022 - 31/03/2022,Stores Purchases
Wyre Council,http://opendatacommunities.org/doc/district-council/wyre,30/12/2022,Resources,Current Assets,130B,Whistl Uk Limited,14/12/2022,RS145936,4.60,0.00,Annual postage charges 01/04/2022 - 31/03/2022,Stores Purchases
Wyre Council,http://opendatacommunities.org/doc/district-council/wyre,30/12/2022,Resources,Current Assets,130B,Whistl Uk Limited,02/12/2022,RS145665,470.19,0.00,Annual postage charges 01/04/2022 - 31/03/2022,Stores Purchases
Wyre Council,http://opendatacommunities.org/doc/district-council/wyre,30/12/2022,Resources,Current Assets,130B,Whistl Uk Limited,02/12/2022,RS145665,1.60,0.00,Annual postage charges 01/04/2022 - 31/03/2022,Stores Purchases
Wyre Council,http://opendatacommunities.org/doc/district-council/wyre,30/12/2022,Resources,Current Assets,130B,Whistl Uk Limited,07/12/2022,RS145788,469.04,0.00,Annual postage charges 01/04/2022 - 31/03/2022,Stores Purchases
Wyre Council,http://opendatacommunities.org/doc/district-council/wyre,30/12/2022,Resources,Current Assets,130B,Whistl Uk Limited,07/12/2022,RS145788,2.00,0.00,Annual postage charges 01/04/2022 - 31/03/2022,Stores Purchases
Wyre Council,http://opendatacommunities.org/doc/district-council/wyre,30/12/2022,People and Places,Environmental Services,132B,Balmers GM LTD,05/12/2022,PE145715,940.00,0.00,2 no Stihl backpack blowers @ 470 each,Street Cleansing Projects
Wyre Council,http://opendatacommunities.org/doc/district-council/wyre,30/12/2022,Resources,Cultural and Related Services,132A,Daisy Communications LTD,19/12/2022,RS145860,34.87,0.00,Monthly Phone Charges,Telephone - Buildings and Offices
Wyre Council,http://opendatacommunities.org/doc/district-council/wyre,30/12/2022,Resources,Environmental Services,132B,Daisy Communications LTD,19/12/2022,RS145860,10.71,0.00,Monthly Phone Charges,Telephone - Buildings and Offices
Wyre Council,http://opendatacommunities.org/doc/district-council/wyre,30/12/2022,Resources,Planning and Development Servs,132C,Daisy Communications LTD,19/12/2022,RS145860,0.52,0.00,Monthly Phone Charges,Telephone - Buildings and Offices
Wyre Council,http://opendatacommunities.org/doc/district-council/wyre,30/12/2022,Resources,Support Services,135B,Daisy Communications LTD,19/12/2022,RS145860,33.30,0.00,Monthly Phone Charges,Telephone - Buildings and Offices
Wyre Council,http://opendatacommunities.org/doc/district-council/wyre,30/12/2022,Resources,Support Services,135B,Daisy Communications LTD,19/12/2022,RS145860,2.20,0.00,Monthly Phone Charges,Telephone - Buildings and Offices
Wyre Council,http://opendatacommunities.org/doc/district-council/wyre,30/12/2022,Resources,Cultural and Related Services,132A,Daisy Communications LTD,19/12/2022,RS145860,21.42,0.00,Monthly Phone Charges,Telephone - Buildings and Offices
Wyre Council,http://opendatacommunities.org/doc/district-council/wyre,30/12/2022,Resources,Cultural and Related Services,132A,Daisy Communications LTD,19/12/2022,RS145860,10.71,0.00,Monthly Phone Charges,Telephone - Buildings and Offices
Wyre Council,http://opendatacommunities.org/doc/district-council/wyre,30/12/2022,Resources,Cultural and Related Services,132A,Daisy Communications LTD,19/12/2022,RS145860,66.60,0.00,Monthly Phone Charges,Telephone - Buildings and Offices
Wyre Council,http://opendatacommunities.org/doc/district-council/wyre,30/12/2022,Resources,Cultural and Related Services,132A,Daisy Communications LTD,19/12/2022,RS145860,11.07,0.00,Monthly Phone Charges,Telephone - Buildings and Offices
Wyre Council,http://opendatacommunities.org/doc/district-council/wyre,30/12/2022,Resources,Environmental Services,132B,Daisy Communications LTD,19/12/2022,RS145860,32.13,0.00,Monthly Phone Charges,Telephone - Buildings and Offices
Wyre Council,http://opendatacommunities.org/doc/district-council/wyre,30/12/2022,Resources,Support Services,135B,Daisy Communications LTD,19/12/2022,RS145860,10.71,0.00,Monthly Phone Charges,Telephone - Buildings and Offices
Wyre Council,http://opendatacommunities.org/doc/district-council/wyre,30/12/2022,Resources,Support Services,135B,Daisy Communications LTD,19/12/2022,RS145860,2045.76,0.00,Monthly Phone Charges,Telephone - Buildings and Offices
Wyre Council,http://opendatacommunities.org/doc/district-council/wyre,30/12/2022,Resources,Cultural and Related Services,132A,Daisy Communications LTD,19/12/2022,RS145860,10.71,0.00,Monthly Phone Charges,Telephone - Buildings and Offices
Wyre Council,http://opendatacommunities.org/doc/district-council/wyre,30/12/2022,Resources,Cultural and Related Services,132A,Daisy Communications LTD,19/12/2022,RS145860,10.71,0.00,Monthly Phone Charges,Telephone - Buildings and Offices
Wyre Council,http://opendatacommunities.org/doc/district-council/wyre,30/12/2022,Resources,Planning and Development Servs,132C,Daisy Communications LTD,19/12/2022,RS145860,10.71,0.00,Monthly Phone Charges,Telephone - Buildings and Offices
Wyre Council,http://opendatacommunities.org/doc/district-council/wyre,30/12/2022,Resources,Planning and Development Servs,132C,Daisy Communications LTD,19/12/2022,RS145860,2.20,0.00,Monthly Phone Charges,Telephone - Buildings and Offices
Wyre Council,http://opendatacommunities.org/doc/district-council/wyre,30/12/2022,Resources,Cultural and Related Services,132A,Daisy Communications LTD,19/12/2022,RS145860,60.96,0.00,Monthly Phone Charges,Telephone - Buildings and Offices
Wyre Council,http://opendatacommunities.org/doc/district-council/wyre,30/12/2022,People and Places,Support Services,135B,Catterall Parish Council,02/12/2022,PE145684,600.00,0.00,Contributions towards 2022 `in Bloom`,Tourism Support
Wyre Council,http://opendatacommunities.org/doc/district-council/wyre,30/12/2022,People and Places,Support Services,135B,Hambleton Parish Council,14/12/2022,PE145979,600.00,0.00,Contributions towards 2022 `in Bloom`,Tourism Support
Wyre Council,http://opendatacommunities.org/doc/district-council/wyre,30/12/2022,People and Places,Planning and Development Servs,132C,Healthier Fleetwood Onward Ltd,16/12/2022,PE145997,3000.00,0.00,Future Fleetwood - Comms & Marketing,Town Centre Strategy Fund
Wyre Council,http://opendatacommunities.org/doc/district-council/wyre,30/12/2022,Resources,Support Services,135B,QA Limited,07/12/2022,RS145822,5000.00,0.00,"Skills Application License This covers 5000 of training and includes 2 free additional days. To be used for two places on Certified Ethical Hacker training valued at a discounted cost of 4500, with the remainder value of 500 available to use ag",Training - Non HR Controlled
Wyre Council,http://opendatacommunities.org/doc/district-council/wyre,30/12/2022,People and Places,Environmental Services,132B,M J Wilkinson,01/12/2022,PE145644,52.82,0.00,Each way transport,Vehicle Hire
Wyre Council,http://opendatacommunities.org/doc/district-council/wyre,30/12/2022,People and Places,Environmental Services,132B,M J Wilkinson,01/12/2022,PE145644,31.68,0.00,Hire of 1T Dumper Order no 1078226/9/22,Vehicle Hire
Wyre Council,http://opendatacommunities.org/doc/district-council/wyre,30/12/2022,People and Places,Environmental Services,132B,M J Wilkinson,01/12/2022,PE145644,93.20,0.00,Hire of 1T Dumper Order no 1078230/9/22,Vehicle Hire
Wyre Council,http://opendatacommunities.org/doc/district-council/wyre,30/12/2022,People and Places,Environmental Services,132B,M J Wilkinson,01/12/2022,PE145644,105.64,0.00,Each way transport for both,Vehicle Hire
Wyre Council,http://opendatacommunities.org/doc/district-council/wyre,30/12/2022,People and Places,Environmental Services,132B,M J Wilkinson,01/12/2022,PE145638,675.52,0.00,Hire of Hitachi ZX30Order no 107795/9/22 to 8/9/22,Vehicle Hire
Wyre Council,http://opendatacommunities.org/doc/district-council/wyre,30/12/2022,People and Places,Environmental Services,132B,M J Wilkinson,01/12/2022,PE145638,26.41,0.00,Transport to site 5/9/22 to 8/9/22,Vehicle Hire
Wyre Council,http://opendatacommunities.org/doc/district-council/wyre,30/12/2022,People and Places,Environmental Services,132B,M J Wilkinson,22/12/2022,PE146226,337.76,0.00,Hire of Hitachi ZX30Order no 1078412/10/22 - 13/10/22,Vehicle Hire
Wyre Council,http://opendatacommunities.org/doc/district-council/wyre,30/12/2022,People and Places,Environmental Services,132B,M J Wilkinson,22/12/2022,PE146226,52.82,0.00,Each way transport 26.41 each way,Vehicle Hire
Wyre Council,http://opendatacommunities.org/doc/district-council/wyre,30/12/2022,People and Places,Cultural and Related Services,132A,Healthy Heads Education Ltd,08/12/2022,PE145867,1667.00,0.00,"PASTA programme delivery in Wyre for 2022/23. 1,667 per 6 week course. Delivery at Larkholme and Chaucer primary schools.",Weight Management Programme
Wyre Council,http://opendatacommunities.org/doc/district-council/wyre,30/12/2022,People and Places,Cultural and Related Services,132A,MAN v FAT Football,13/12/2022,PE145883,7500.00,0.00,"2 Man v Fat leagues to take place in Wyre at Poolfoot Farm, Thornton Cleveleys. February 2022 - December 2022, 2 leagues at 5K each",Weight Management Programme
